Workbook

Sheet Example
A1: Illustrative Scaling Function Calibration | F1: Scaling Function
A2: Annual Expected Loss | B2: 42 | C2: million | G2: x | I2: Slope | J2: y
F3: Breakpoint 1 ($m) | G3: 1 | H3: s1 | I3: 1 | J3: 0
A4: Attachment ($m/yr) | B4: 125 | C4: Expected Loss/Event | D4: =B2/n_fires -> 10.5 | F4: Breakpoint 2 ($m) | G4: 100 | H4: s2 | I4: 2.305 | J4: =I3*G3 -> 1
A5: Coverage ($m/yr) | B5: 30 | C5: Stdev/Event | D5: 12.1 | F5: Breakpoint 3 ($m) | G5: ="> "&TEXT(bkpt_2_x,"$0.0") -> > $100.0 | H5: s3 | I5: 7 | J5: =I3*G3+(G4-G3)*I4 -> 229.195
A6: Num fires/year | B6: 4 | C6: Monte-Carlo Mode | D6: Static
A7: Num samples | B7: 10000
B42: Annual WF Loss Avg | D42: Cat Bond Coupon | G42: Insurance Losses | J42: ="Probability of >"&TEXT(attachment,"$0")&"m loss" -> Probability of >$125m loss
B43: Underlying | C43: Market Implied | D43: Underlying | E43: Market Implied | F43: Multiplier | G43: Underlying | H43: Market Implied | I43: Loss Ratio | J43: Underlying | K43: Market Implied | M43: Lognorm Mean | N43: =LN($D$4^2/SQRT($D$5^2+$D$4^2)) -> 1.928874388 | P43: Live | Q43: Current Monte-Carlo Mode
B44: =AVERAGE(B46:B10045) -> 42.17881834 | C44: =AVERAGE(C46:C10045) -> 93.06603929 | D44: =AVERAGE(D46:D10045)/coverage -> 0.007026589485 | E44: =AVERAGE(E46:E10045)/B$5 -> 0.1502559489 | F44: =E44/D44 -> 21.38390883 | G44: =AVERAGE(G46:G10045) -> 40.83448003 | H44: =AVERAGE(H46:H10045) -> 80.42912096 | I44: =G44/H44 -> 0.5077076504 | J44: =AVERAGE(J46:J10045) -> 0.0111 | K44: =AVERAGE(K46:K10045) -> 0.2006 | M44: Lognorm Stdev | N44: =SQRT(LN($D$5^2/$D$4^2+1)) -> 0.9192397606 | P44: Static | Q44: =$D$6=P43 -> FALSE
A45: Sample # | M45: Original (Wi) | X45: Risk-Adjusted (W*i)
A46: 1 | B46: =SUMPRODUCT(M46:V46,valid_event) -> 36.52956503 | C46: =SUMPRODUCT(X46:AG46,valid_event) -> 78.98064739 | D46: =MAX($B46-attachment,0)-MAX($B46-(attachment+coverage),0) -> 0 | E46: =MAX($C46-attachment,0)-MAX($C46-(attachment+coverage),0) -> 0 | G46: =MAX(B46-bkpt_1_x,0)-MAX(B46-attachment,0) -> 35.52956503 | H46: =MAX(C46-bkpt_1_x,0)-MAX(C46-attachment,0) -> 77.98064739 | J46: =IF(B46>attachment,1,0) -> 0 | K46: =IF(C46>attachment,1,0) -> 0 | M46: =_xlfn.LOGNORM.INV(IF(mc_mode,M10050:M20049,X10050:X20049),lognorm_mean,lognorm_stdev) -> 1.468677404 | N46: =_xlfn.LOGNORM.INV(IF(mc_mode,N10050:N20049,Y10050:Y20049),lognorm_mean,lognorm_stdev) -> 20.84931196 | O46: =_xlfn.LOGNORM.INV(IF(mc_mode,O10050:O20049,Z10050:Z20049),lognorm_mean,lognorm_stdev) -> 11.70960666 | P46: =_xlfn.LOGNORM.INV(IF(mc_mode,P10050:P20049,AA10050:AA20049),lognorm_mean,lognorm_stdev) -> 2.501969001 | Q46: =_xlfn.LOGNORM.INV(IF(mc_mode,Q10050:Q20049,AB10050:AB20049),lognorm_mean,lognorm_stdev) -> 5.375872942 | R46: =_xlfn.LOGNORM.INV(IF(mc_mode,R10050:R20049,AC10050:AC20049),lognorm_mean,lognorm_stdev) -> 46.12897793 | S46: =_xlfn.LOGNORM.INV(IF(mc_mode,S10050:S20049,AD10050:AD20049),lognorm_mean,lognorm_stdev) -> 11.8389032 | T46: =_xlfn.LOGNORM.INV(IF(mc_mode,T10050:T20049,AE10050:AE20049),lognorm_mean,lognorm_stdev) -> 6.521358796 | U46: =_xlfn.LOGNORM.INV(IF(mc_mode,U10050:U20049,AF10050:AF20049),lognorm_mean,lognorm_stdev) -> 1.611530964 | V46: =_xlfn.LOGNORM.INV(IF(mc_mode,V10050:V20049,AG10050:AG20049),lognorm_mean,lognorm_stdev) -> 32.88552367 | X46: =IF(M46>bkpt_2_x,slope3*(M46-bkpt_2_x)+bkpt_2_y,IF(M46>bkpt_1_x,slope2*(M46-bkpt_1_x)+bkpt_1_y,slope1*M46)) -> 2.080301417 | Y46: =IF(N46>bkpt_2_x,slope3*(N46-bkpt_2_x)+bkpt_2_y,IF(N46>bkpt_1_x,slope2*(N46-bkpt_1_x)+bkpt_1_y,slope1*N46)) -> 46.75266407 | Z46: =IF(O46>bkpt_2_x,slope3*(O46-bkpt_2_x)+bkpt_2_y,IF(O46>bkpt_1_x,slope2*(O46-bkpt_1_x)+bkpt_1_y,slope1*O46)) -> 25.68564336 | AA46: =IF(P46>bkpt_2_x,slope3*(P46-bkpt_2_x)+bkpt_2_y,IF(P46>bkpt_1_x,slope2*(P46-bkpt_1_x)+bkpt_1_y,slope1*P46)) -> 4.462038546 | AB46: =IF(Q46>bkpt_2_x,slope3*(Q46-bkpt_2_x)+bkpt_2_y,IF(Q46>bkpt_1_x,slope2*(Q46-bkpt_1_x)+bkpt_1_y,slope1*Q46)) -> 11.08638713 | AC46: =IF(R46>bkpt_2_x,slope3*(R46-bkpt_2_x)+bkpt_2_y,IF(R46>bkpt_1_x,slope2*(R46-bkpt_1_x)+bkpt_1_y,slope1*R46)) -> 105.0222941 | AD46: =IF(S46>bkpt_2_x,slope3*(S46-bkpt_2_x)+bkpt_2_y,IF(S46>bkpt_1_x,slope2*(S46-bkpt_1_x)+bkpt_1_y,slope1*S46)) -> 25.98367188 | AE46: =IF(T46>bkpt_2_x,slope3*(T46-bkpt_2_x)+bkpt_2_y,IF(T46>bkpt_1_x,slope2*(T46-bkpt_1_x)+bkpt_1_y,slope1*T46)) -> 13.72673202 | AF46: =IF(U46>bkpt_2_x,slope3*(U46-bkpt_2_x)+bkpt_2_y,IF(U46>bkpt_1_x,slope2*(U46-bkpt_1_x)+bkpt_1_y,slope1*U46)) -> 2.409578872 | AG46: =IF(V46>bkpt_2_x,slope3*(V46-bkpt_2_x)+bkpt_2_y,IF(V46>bkpt_1_x,slope2*(V46-bkpt_1_x)+bkpt_1_y,slope1*V46)) -> 74.49613207
A47: =A46+1 -> 2 | B47: 14.64235192 | C47: 28.65881248 | D47: 0 | E47: 0 | G47: 13.64235192 | H47: 27.65881248 | J47: 0 | K47: 0 | M47: 2.597670082 | N47: 0.9017691176 | O47: 3.12275158 | P47: 8.020161143 | Q47: 1.346529638 | R47: 8.53661977 | S47: 5.22696178 | T47: 1.945484405 | U47: 11.26048406 | V47: 1.456463474 | X47: 4.682629538 | Y47: 0.9017691176 | Z47: 5.892942393 | AA47: 17.18147144 | AB47: 1.798750816 | AC47: 18.37190857 | AD47: 10.7431469 | AE47: 3.179341553 | AF47: 24.65041575 | AG47: 2.052148307
A48: =A47+1 -> 3 | B48: 81.48924927 | C48: 182.6127196 | D48: 0 | E48: 30 | G48: 80.48924927 | H48: 124 | J48: 0 | K48: 1 | M48: 54.90787279 | N48: 4.708667143 | O48: 13.83821476 | P48: 8.034494587 | Q48: 4.464849034 | R48: 4.341398968 | S48: 1.196414216 | T48: 8.147006569 | U48: 9.438955925 | V48: 16.24759022 | X48: 125.2576468 | Y48: 9.548477764 | Z48: 30.59208501 | AA48: 17.21451002 | AB48: 8.986477024 | AC48: 8.701924621 | AD48: 1.452734767 | AE48: 17.47385014 | AF48: 20.45179341 | AG48: 36.14569545
A49: 4 | B49: 91.74178375 | C49: 206.2448115 | D49: 0 | E49: 30 | G49: 90.74178375 | H49: 124 | J49: 0 | K49: 1 | M49: 38.23966992 | N49: 21.99748813 | O49: 7.447539893 | P49: 24.05708581 | Q49: 10.81680832 | R49: 2.320493015 | S49: 11.01858706 | T49: 10.06067087 | U49: 8.077486065 | V49: 7.669287398 | X49: 86.83743917 | Y49: 49.39921013 | Z49: 15.86157945 | AA49: 54.14658279 | AB49: 23.62774318 | AC49: 4.0437364 | AD49: 24.09284317 | AE49: 21.88484635 | AF49: 17.31360538 | AG49: 16.37270745
A50: 5 | B50: 62.0479202 | C50: 137.8004561 | D50: 0 | E50: 12.80045607 | G50: 61.0479202 | H50: 124 | J50: 0 | K50: 1 | M50: 21.88164775 | N50: 3.745377126 | O50: 28.60580062 | P50: 7.815094706 | Q50: 20.1891512 | R50: 4.722973102 | S50: 14.16684455 | T50: 9.211565905 | U50: 27.22733185 | V50: 5.70713182 | X50: 49.13219806 | Y50: 7.328094275 | Z50: 64.63137044 | AA50: 16.7087933 | AB50: 45.23099351 | AC50: 9.581452999 | AD50: 31.3495767 | AE50: 19.92765941 | AF50: 61.45399992 | AG50: 11.84993884
A51: 6 | B51: 30.68384561 | C51: 65.50626412 | D51: 0 | E51: 0 | G51: 29.68384561 | H51: 64.50626412 | J51: 0 | K51: 0 | M51: 6.424162373 | N51: 2.956968247 | O51: 13.47639118 | P51: 7.826323807 | Q51: 4.327317119 | R51: 7.663164748 | S51: 1.631217318 | T51: 15.99820859 | U51: 6.845403821 | V51: 4.243104206 | X51: 13.50269427 | Y51: 5.510811809 | Z51: 29.75808167 | AA51: 16.73467637 | AB51: 8.669465959 | AC51: 16.35859474 | AD51: 2.454955918 | AE51: 35.5708708 | AF51: 14.47365581 | AG51: 8.475355194
A52: 7 | B52: 17.31873667 | C52: 34.69968804 | D52: 0 | E52: 0 | G52: 16.31873667 | H52: 33.69968804 | J52: 0 | K52: 0 | M52: 1.034303337 | N52: 10.66797411 | O52: 4.344810463 | P52: 1.271648765 | Q52: 8.834984959 | R52: 5.006929883 | S52: 9.098060208 | T52: 9.00970343 | U52: 4.754379076 | V52: 9.370762333 | X52: 1.079069191 | Y52: 23.28468032 | Z52: 8.709788116 | AA52: 1.626150404 | AB52: 19.05964033 | AC52: 10.23597338 | AD52: 19.66602878 | AE52: 19.46236641 | AF52: 9.653843769 | AG52: 20.29460718
A53: 8 | B53: 18.61722863 | C53: 37.69271199 | D53: 0 | E53: 0 | G53: 17.61722863 | H53: 36.69271199 | J53: 0 | K53: 0 | M53: 5.53614629 | N53: 4.4073626 | O53: 5.556225555 | P53: 3.117494185 | Q53: 2.125207268 | R53: 8.848289497 | S53: 2.707214929 | T53: 23.8678794 | U53: 2.384352385 | V53: 22.61032225 | X53: 11.4558172 | Y53: 8.853970793 | Z53: 11.5020999 | AA53: 5.880824096 | AB53: 3.593602752 | AC53: 19.09030729 | AD53: 4.935130411 | AE53: 53.71046201 | AF53: 4.190932247 | AG53: 50.8117928
A54: 9 | B54: 83.24517743 | C54: 186.660134 | D54: 0 | E54: 30 | G54: 82.24517743 | H54: 124 | J54: 0 | K54: 1 | M54: 7.602310284 | N54: 10.88460494 | O54: 42.22375793 | P54: 22.53450428 | Q54: 7.572964686 | R54: 23.59561931 | S54: 6.669138126 | T54: 9.500687297 | U54: 4.444245885 | V54: 8.427639209 | X54: 16.2183252 | Y54: 23.78401439 | Z54: 96.02076204 | AA54: 50.63703235 | AB54: 16.1506836 | AC54: 53.0829025 | AD54: 14.06736338 | AE54: 20.59408422 | AF54: 8.938986764 | AG54: 18.12070838
A55: 10 | B55: 32.30067475 | C55: 69.23305529 | D55: 0 | E55: 0 | G55: 31.30067475 | H55: 68.23305529 | J55: 0 | K55: 0 | M55: 12.51632157 | N55: 3.942658986 | O55: 3.825430481 | P55: 12.01626371 | Q55: 11.29884707 | R55: 4.390419448 | S55: 20.15770943 | T55: 19.30336503 | U55: 1.339212893 | V55: 7.522104067 | X55: 27.54512122 | Y55: 7.782828962 | Z55: 7.512617259 | AA55: 26.39248786 | AB55: 24.73884249 | AC55: 8.814916828 | AD55: 45.15852023 | AE55: 43.18925641 | AF55: 1.781885718 | AG55: 16.03344987
A56: 11 | B56: 28.58099865 | C56: 60.65920189 | D56: 0 | E56: 0 | G56: 27.58099865 | H56: 59.65920189 | J56: 0 | K56: 0 | M56: 4.596303131 | N56: 4.912735284 | O56: 6.826792144 | P56: 12.24516809 | Q56: 1.312772213 | R56: 8.042898794 | S56: 23.82244506 | T56: 8.897234559 | U56: 4.942544959 | V56: 12.59911711 | X56: 9.289478717 | Y56: 10.01885483 | Z56: 14.43075589 | AA56: 26.92011245 | AB56: 1.720939952 | AC56: 17.23388172 | AD56: 53.60573586 | AE56: 19.20312566 | AF56: 10.08756613 | AG56: 27.73596493
A57: 12 | B57: 49.86990225 | C57: 109.7301247 | D57: 0 | E57: 0 | G57: 48.86990225 | H57: 108.7301247 | J57: 0 | K57: 0 | M57: 1.306420645 | N57: 17.05388064 | O57: 6.365244401 | P57: 25.14435656 | Q57: 3.407394469 | R57: 1.879666462 | S57: 30.04753185 | T57: 18.44458576 | U57: 2.291758279 | V57: 18.05858009 | X57: 1.706299586 | Y57: 38.00419487 | Z57: 13.36688834 | AA57: 56.65274188 | AB57: 6.54904425 | AC57: 3.027631195 | AD57: 67.95456092 | AE57: 41.20977018 | AF57: 3.977502832 | AG57: 40.32002711
A58: 13 | B58: 25.59928574 | C58: 53.78635363 | D58: 0 | E58: 0 | G58: 24.59928574 | H58: 52.78635363 | J58: 0 | K58: 0 | M58: 1.153727526 | N58: 6.413578644 | O58: 11.91215961 | P58: 6.119819955 | Q58: 3.11131844 | R58: 8.125714504 | S58: 8.536760141 | T58: 3.445856953 | U58: 8.12668706 | V58: 18.74520598 | X58: 1.354341947 | Y58: 13.47829877 | Z58: 26.15252791 | AA58: 12.801185 | AB58: 5.866589005 | AC58: 17.42477193 | AD58: 18.37223213 | AE58: 6.637700277 | AF58: 17.42701367 | AG58: 41.90269978
A59: 14 | B59: 44.95986089 | C59: 98.41247936 | D59: 0 | E59: 0 | G59: 43.95986089 | H59: 97.41247936 | J59: 0 | K59: 0 | M59: 22.74253882 | N59: 2.559726638 | O59: 6.153928245 | P59: 13.5036672 | Q59: 3.110514125 | R59: 5.318708203 | S59: 23.18066936 | T59: 3.746898379 | U59: 5.498212351 | V59: 1.514372779 | X59: 51.11655197 | Y59: 4.595169899 | Z59: 12.8798046 | AA59: 29.82095289 | AB59: 5.864735059 | AC59: 10.95462241 | AD59: 52.12644288 | AE59: 7.331600765 | AF59: 11.36837947 | AG59: 2.185629257
A60: 15 | B60: 43.59900049 | C60: 95.27569613 | D60: 0 | E60: 0 | G60: 42.59900049 | H60: 94.27569613 | J60: 0 | K60: 0 | M60: 2.096887677 | N60: 17.81355397 | O60: 16.81935648 | P60: 6.869202357 | Q60: 2.539688457 | R60: 7.232729737 | S60: 29.26242697 | T60: 5.499212612 | U60: 5.949803182 | V60: 49.98187051 | X60: 3.528326097 | Y60: 39.75524191 | Z60: 37.46361669 | AA60: 14.52851143 | AB60: 4.548981894 | AC60: 15.36644204 | AD60: 66.14489416 | AE60: 11.37068507 | AF60: 12.40929634 | AG60: 113.9032115
A61: 16 | B61: 30.28311664 | C61: 64.58258385 | D61: 0 | E61: 0 | G61: 29.28311664 | H61: 63.58258385 | J61: 0 | K61: 0 | M61: 7.388722377 | N61: 7.432984426 | O61: 8.08585847 | P61: 7.375551366 | Q61: 32.55360698 | R61: 12.71695886 | S61: 4.36675281 | T61: 3.5012767 | U61: 7.256157949 | V61: 8.772221382 | X61: 15.72600508 | Y61: 15.8280291 | Z61: 17.33290377 | AA61: 15.6956459 | AB61: 73.73106408 | AC61: 28.00759018 | AD61: 8.760365227 | AE61: 6.765442794 | AF61: 15.42044407 | AG61: 18.91497029
A62: 17 | B62: 29.77029872 | C62: 63.40053854 | D62: 0 | E62: 0 | G62: 28.77029872 | H62: 62.40053854 | J62: 0 | K62: 0 | M62: 8.832718655 | N62: 10.40693339 | O62: 2.788908008 | P62: 7.741738662 | Q62: 4.201327672 | R62: 6.11273013 | S62: 2.723231021 | T62: 22.01819598 | U62: 5.015848407 | V62: 2.8966538 | X62: 19.0544165 | Y62: 22.68298147 | Z62: 5.123432958 | AA62: 16.53970762 | AB62: 8.379060285 | AC62: 12.78484295 | AD62: 4.972047504 | AE62: 49.44694173 | AF62: 10.25653058 | AG62: 5.37178701
A63: 18 | B63: 82.55087112 | C63: 185.0597579 | D63: 0 | E63: 30 | G63: 81.55087112 | H63: 124 | J63: 0 | K63: 1 | M63: 10.41811578 | N63: 4.652140891 | O63: 9.055912156 | P63: 58.42470229 | Q63: 4.657092957 | R63: 9.953618338 | S63: 9.485993569 | T63: 20.03721117 | U63: 11.44298466 | V63: 4.026378513 | X63: 22.70875687 | Y63: 9.418184755 | Z63: 19.56887752 | AA63: 133.3639388 | AB63: 9.429599265 | AC63: 21.63809027 | AD63: 20.56021518 | AE63: 44.88077174 | AF63: 25.07107965 | AG63: 7.975802472
A64: 19 | B64: 55.00996871 | C64: 121.5779779 | D64: 0 | E64: 0 | G64: 54.00996871 | H64: 120.5779779 | J64: 0 | K64: 0 | M64: 21.40924753 | N64: 3.832441783 | O64: 16.47406343 | P64: 13.29421596 | Q64: 49.62952881 | R64: 16.21910922 | S64: 8.37126684 | T64: 2.495601797 | U64: 5.053906845 | V64: 7.099151195 | X64: 48.04331556 | Y64: 7.528778309 | Z64: 36.66771621 | AA64: 29.33816779 | AB64: 113.0910639 | AC64: 36.08004674 | AD64: 17.99077007 | AE64: 4.447362141 | AF64: 10.34425528 | AG64: 15.0585435
A65: 20 | B65: 52.7114444 | C65: 116.2798793 | D65: 0 | E65: 0 | G65: 51.7114444 | H65: 115.2798793 | J65: 0 | K65: 0 | M65: 2.986466326 | N65: 14.38055245 | O65: 6.078622954 | P65: 29.26580267 | Q65: 2.581210905 | R65: 2.669714299 | S65: 9.599021933 | T65: 1.450932685 | U65: 52.47900919 | V65: 7.701367707 | X65: 5.578804882 | Y65: 31.84217339 | Z65: 12.70622591 | AA65: 66.15267516 | AB65: 4.644691136 | AC65: 4.84869146 | AD65: 20.82074556 | AE65: 2.039399838 | AF65: 119.6591162 | AG65: 16.44665256
A66: 21 | B66: 69.65647251 | C66: 155.3381691 | D66: 0 | E66: 30 | G66: 68.65647251 | H66: 124 | J66: 0 | K66: 1 | M66: 30.31071801 | N66: 14.91096042 | O66: 2.779071587 | P66: 21.65572249 | Q66: 38.91319981 | R66: 9.345811976 | S66: 6.240927408 | T66: 5.942068838 | U66: 4.175732911 | V66: 12.33526933 | X66: 68.56120502 | Y66: 33.06476376 | Z66: 5.100760007 | AA66: 48.61144035 | AB66: 88.38992556 | AC66: 20.2370966 | AD66: 13.08033767 | AE66: 12.39146867 | AF66: 8.320064359 | AG66: 27.12779581
A67: 22 | B67: 50.4657253 | C67: 111.1034968 | D67: 0 | E67: 0 | G67: 49.4657253 | H67: 110.1034968 | J67: 0 | K67: 0 | M67: 9.069310644 | N67: 4.456408248 | O67: 30.59529205 | P67: 6.344714362 | Q67: 1.984925064 | R67: 4.708293948 | S67: 16.34361829 | T67: 15.03265691 | U67: 8.310990786 | V67: 12.13989978 | X67: 19.59976104 | Y67: 8.967021012 | Z67: 69.21714817 | AA67: 13.3195666 | AB67: 3.270252273 | AC67: 9.547617549 | AD67: 36.36704015 | AE67: 33.34527417 | AF67: 17.85183376 | AG67: 26.67746899
A68: 23 | B68: 29.61938974 | C68: 63.05269334 | D68: 0 | E68: 0 | G68: 28.61938974 | H68: 62.05269334 | J68: 0 | K68: 0 | M68: 4.643914359 | N68: 7.105154379 | O68: 7.897918357 | P68: 9.972402641 | Q68: 9.12751858 | R68: 28.12192297 | S68: 7.494632511 | T68: 16.89669909 | U68: 3.254587119 | V68: 1.811916458 | X68: 9.399222597 | Y68: 15.07238084 | Z68: 16.89970181 | AA68: 21.68138809 | AB68: 19.73393033 | AC68: 63.51603244 | AD68: 15.97012794 | AE68: 37.64189139 | AF68: 6.196823308 | AG68: 2.871467435
A69: 24 | B69: 13.96654628 | C69: 26.97288918 | D69: 0 | E69: 0 | G69: 12.96654628 | H69: 25.97288918 | J69: 0 | K69: 0 | M69: 3.551886385 | N69: 2.874765329 | O69: 2.19908079 | P69: 5.34081378 | Q69: 12.69293397 | R69: 10.51212285 | S69: 9.966114338 | T69: 11.49583741 | U69: 6.670870205 | V69: 6.222466863 | X69: 6.882098117 | Y69: 5.321334083 | Z69: 3.76388122 | AA69: 11.00557576 | AB69: 27.95221281 | AC69: 22.92544317 | AD69: 21.66689355 | AE69: 25.19290522 | AF69: 14.07135582 | AG69: 13.03778612
A70: 25 | B70: 92.90178584 | C70: 208.9186164 | D70: 0 | E70: 30 | G70: 91.90178584 | H70: 124 | J70: 0 | K70: 1 | M70: 7.135913822 | N70: 15.70059501 | O70: 26.90813466 | P70: 43.15714235 | Q70: 2.964666376 | R70: 19.35350454 | S70: 16.78169659 | T70: 3.761468256 | U70: 2.056251531 | V70: 10.57510533 | X70: 15.14328136 | Y70: 34.88487149 | Z70: 60.7182504 | AA70: 98.17221312 | AB70: 5.528555996 | AC70: 43.30482798 | AD70: 37.37681063 | AE70: 7.365184329 | AF70: 3.434659778 | AG70: 23.07061779
A71: 26 | B71: 75.91560379 | C71: 169.7654667 | D71: 0 | E71: 30 | G71: 74.91560379 | H71: 124 | J71: 0 | K71: 1 | M71: 2.459982544 | N71: 36.95434719 | O71: 3.596181836 | P71: 32.90509223 | Q71: 7.486089619 | R71: 15.24118711 | S71: 5.911773824 | T71: 6.09455836 | U71: 6.00569213 | V71: 10.14412793 | X71: 4.365259764 | Y71: 83.87477027 | Z71: 6.984199132 | AA71: 74.54123758 | AB71: 15.95043657 | AC71: 33.82593628 | AD71: 12.32163866 | AE71: 12.74295702 | AF71: 12.53812036 | AG71: 22.07721488
A72: 27 | B72: 27.6417329 | C72: 58.49419434 | D72: 0 | E72: 0 | G72: 26.6417329 | H72: 57.49419434 | J72: 0 | K72: 0 | M72: 2.280891494 | N72: 13.47116714 | O72: 5.631530773 | P72: 6.258143497 | Q72: 5.885035477 | R72: 5.535773047 | S72: 16.01779279 | T72: 20.17589087 | U72: 2.057219891 | V72: 6.684374864 | X72: 3.952454894 | Y72: 29.74604026 | Z72: 11.67567843 | AA72: 13.12002076 | AB72: 12.26000677 | AC72: 11.45495687 | AD72: 35.61601237 | AE72: 45.20042845 | AF72: 3.436891849 | AG72: 14.10248406
A73: 28 | B73: 50.93269531 | C73: 112.1798627 | D73: 0 | E73: 0 | G73: 49.93269531 | H73: 111.1798627 | J73: 0 | K73: 0 | M73: 7.144155691 | N73: 1.184368866 | O73: 16.4790546 | P73: 26.12511615 | Q73: 6.910536116 | R73: 20.05465256 | S73: 2.030145782 | T73: 3.358901448 | U73: 7.933005295 | V73: 1.385465556 | X73: 15.16227887 | Y73: 1.424970236 | Z73: 36.67922086 | AA73: 58.91339274 | AB73: 14.62378575 | AC73: 44.92097415 | AD73: 3.374486027 | AE73: 6.437267838 | AF73: 16.9805772 | AG73: 1.888498106
A74: 29 | B74: 62.57333193 | C74: 139.0115301 | D74: 0 | E74: 14.01153009 | G74: 61.57333193 | H74: 124 | J74: 0 | K74: 1 | M74: 17.76818367 | N74: 2.421376581 | O74: 39.41298931 | P74: 2.970782361 | Q74: 7.698315464 | R74: 13.36031031 | S74: 14.08836736 | T74: 16.9293431 | U74: 4.373467101 | V74: 2.19775976 | X74: 39.65066336 | Y74: 4.276273018 | Z74: 89.54194037 | AA74: 5.542653343 | AB74: 16.43961714 | AC74: 29.49051526 | AD74: 31.16868677 | AE74: 37.71713585 | AF74: 8.775841669 | AG74: 3.760836247
A75: 30 | B75: 32.74981115 | C75: 70.26831471 | D75: 0 | E75: 0 | G75: 31.74981115 | H75: 69.26831471 | J75: 0 | K75: 0 | M75: 4.093391378 | N75: 6.40041961 | O75: 8.201337302 | P75: 14.05466286 | Q75: 4.145000959 | R75: 16.63403936 | S75: 1.787293611 | T75: 0.8685091862 | U75: 6.592283686 | V75: 2.626246783 | X75: 8.130267126 | Y75: 13.4479672 | Z75: 17.59908248 | AA75: 31.0909979 | AB75: 8.24922721 | AC75: 37.03646072 | AD75: 2.814711772 | AE75: 0.8685091862 | AF75: 13.8902139 | AG75: 4.748498834
A76: 31 | B76: 22.67228986 | C76: 47.03962813 | D76: 0 | E76: 0 | G76: 21.67228986 | H76: 46.03962813 | J76: 0 | K76: 0 | M76: 5.984433784 | N76: 6.095048992 | O76: 7.693535402 | P76: 2.899271684 | Q76: 6.622900984 | R76: 5.215428386 | S76: 1.951699183 | T76: 4.026220852 | U76: 5.431716557 | V76: 3.08036672 | X76: 12.48911987 | Y76: 12.74408793 | Z76: 16.4285991 | AA76: 5.377821232 | AB76: 13.96078677 | AC76: 10.71656243 | AD76: 3.193666616 | AE76: 7.975439064 | AF76: 11.21510666 | AG76: 5.795245289
A77: 32 | B77: 43.6583715 | C77: 95.4125463 | D77: 0 | E77: 0 | G77: 42.6583715 | H77: 94.4125463 | J77: 0 | K77: 0 | M77: 8.730268239 | N77: 6.599624715 | O77: 3.224571016 | P77: 25.10390753 | Q77: 13.88892624 | R77: 1.745158911 | S77: 3.762172835 | T77: 5.074303144 | U77: 16.21981482 | V77: 16.48622912 | X77: 18.81826829 | Y77: 13.90713497 | Z77: 6.127636191 | AA77: 56.55950685 | AB77: 30.70897498 | AC77: 2.717591289 | AD77: 7.366808384 | AE77: 10.39126875 | AF77: 36.08167315 | AG77: 36.69575813
A78: 33 | B78: 50.04027506 | C78: 110.122834 | D78: 0 | E78: 0 | G78: 49.04027506 | H78: 109.122834 | J78: 0 | K78: 0 | M78: 9.65920337 | N78: 13.04145061 | O78: 1.900245044 | P78: 25.43937603 | Q78: 25.76634954 | R78: 3.565132011 | S78: 9.097510901 | T78: 1.812110999 | U78: 8.180335752 | V78: 5.449634173 | X78: 20.95946377 | Y78: 28.75554366 | Z78: 3.075064826 | AA78: 57.33276176 | AB78: 58.08643569 | AC78: 6.912629285 | AD78: 19.66476263 | AE78: 2.871915853 | AF78: 17.55067391 | AG78: 11.25640677
A79: 34 | B79: 75.07308038 | C79: 167.8234503 | D79: 0 | E79: 30 | G79: 74.07308038 | H79: 124 | J79: 0 | K79: 1 | M79: 4.802700411 | N79: 52.77255841 | O79: 12.22867228 | P79: 5.269149278 | Q79: 14.74014451 | R79: 16.88265067 | S79: 6.189032366 | T79: 3.980026818 | U79: 16.25468886 | V79: 29.6395288 | X79: 9.765224447 | Y79: 120.3357471 | Z79: 26.88208961 | AA79: 10.84038908 | AB79: 32.67103309 | AC79: 37.60950979 | AD79: 12.9607196 | AE79: 7.868961814 | AF79: 36.16205783 | AG79: 67.01411389
A80: 35 | B80: 27.99383094 | C80: 59.30578032 | D80: 0 | E80: 0 | G80: 26.99383094 | H80: 58.30578032 | J80: 0 | K80: 0 | M80: 6.982433052 | N80: 3.789775414 | O80: 15.00203027 | P80: 2.219592206 | Q80: 3.602587365 | R80: 13.83018989 | S80: 3.791335359 | T80: 11.69430653 | U80: 5.987728526 | V80: 5.298774891 | X80: 14.78950818 | Y80: 7.43043233 | Z80: 33.27467977 | AA80: 3.811160036 | AB80: 6.998963877 | AC80: 30.57358769 | AD80: 7.434028003 | AE80: 25.65037655 | AF80: 12.49671425 | AG80: 10.90867612
A81: 36 | B81: 23.23980574 | C81: 48.34775224 | D81: 0 | E81: 0 | G81: 22.23980574 | H81: 47.34775224 | J81: 0 | K81: 0 | M81: 3.329755709 | N81: 10.68316674 | O81: 1.591991493 | P81: 7.6348918 | Q81: 18.34600848 | R81: 1.996323924 | S81: 13.72107142 | T81: 1.503493246 | U81: 3.618258845 | V81: 15.49492153 | X81: 6.370086909 | Y81: 23.31969934 | Z81: 2.364540391 | AA81: 16.2934256 | AB81: 40.98254954 | AC81: 3.296526646 | AD81: 30.32206962 | AE81: 2.160551933 | AF81: 7.035086638 | AG81: 34.41079414
A82: 37 | B82: 15.14918151 | C82: 29.69886338 | D82: 0 | E82: 0 | G82: 14.14918151 | H82: 28.69886338 | J82: 0 | K82: 0 | M82: 4.163825151 | N82: 3.21335888 | O82: 4.372675321 | P82: 3.399322156 | Q82: 9.008149578 | R82: 27.33045249 | S82: 2.831091447 | T82: 4.939801777 | U82: 17.81162307 | V82: 8.817792495 | X82: 8.292616974 | Y82: 6.101792218 | Z82: 8.774016615 | AA82: 6.530437569 | AB82: 19.45878478 | AC82: 61.69169299 | AD82: 5.220665785 | AE82: 10.0812431 | AF82: 39.75079117 | AG82: 19.0200117
A83: 38 | B83: 33.56235427 | C83: 72.1412266 | D83: 0 | E83: 0 | G83: 32.56235427 | H83: 71.1412266 | J83: 0 | K83: 0 | M83: 6.386951337 | N83: 21.27089593 | O83: 4.760023007 | P83: 1.144483997 | Q83: 22.42748845 | R83: 2.861517831 | S83: 12.51751934 | T83: 2.170856662 | U83: 0.9294971157 | V83: 10.31422459 | X83: 13.41692283 | Y83: 47.72441513 | Z83: 9.66685303 | AA83: 1.333035612 | AB83: 50.39036089 | AC83: 5.290798601 | AD83: 27.54788209 | AE83: 3.698824605 | AF83: 0.9294971157 | AG83: 22.46928768
A84: 39 | B84: 37.85477096 | C84: 82.03524707 | D84: 0 | E84: 0 | G84: 36.85477096 | H84: 81.03524707 | J84: 0 | K84: 0 | M84: 11.19077194 | N84: 5.150387042 | O84: 15.18825643 | P84: 6.325355556 | Q84: 8.228670298 | R84: 33.3501576 | S84: 3.104621525 | T84: 9.828048743 | U84: 46.99311739 | V84: 1.778011343 | X84: 24.48972931 | Y84: 10.56664213 | Z84: 33.70393107 | AA84: 13.27494456 | AB84: 17.66208504 | AC84: 75.56711328 | AD84: 5.851152615 | AE84: 21.34865235 | AF84: 107.0141356 | AG84: 2.793316146
A85: 40 | B85: 14.22852805 | C85: 27.57675715 | D85: 0 | E85: 0 | G85: 13.22852805 | H85: 26.57675715 | J85: 0 | K85: 0 | M85: 1.157171804 | N85: 5.233635381 | O85: 1.791608082 | P85: 6.046112783 | Q85: 5.595178876 | R85: 8.009579175 | S85: 5.306481277 | T85: 2.977117379 | U85: 7.979691944 | V85: 7.611854915 | X85: 1.362281008 | Y85: 10.75852955 | Z85: 2.824656628 | AA85: 12.63128997 | AB85: 11.59188731 | AC85: 17.15708 | AD85: 10.92643934 | AE85: 5.557255558 | AF85: 17.08818993 | AG85: 16.24032558
A86: 41 | B86: 32.77669187 | C86: 70.53120028 | D86: 0 | E86: 0 | G86: 31.77669187 | H86: 69.53120028 | J86: 0 | K86: 0 | M86: 0.8460340824 | N86: 14.79185828 | O86: 8.560108655 | P86: 8.57869085 | Q86: 3.775495827 | R86: 3.234894127 | S86: 2.254946924 | T86: 2.951417585 | U86: 4.195770712 | V86: 5.737418558 | X86: 0.8460340824 | Y86: 32.79023334 | Z86: 18.42605045 | AA86: 18.46888241 | AB86: 7.39751788 | AC86: 6.151430962 | AD86: 3.89265266 | AE86: 5.498017533 | AF86: 8.366251491 | AG86: 11.91974978
A87: 42 | B87: 77.32065761 | C87: 173.0041158 | D87: 0 | E87: 30 | G87: 76.32065761 | H87: 124 | J87: 0 | K87: 1 | M87: 8.920961304 | N87: 48.23052975 | O87: 14.08060314 | P87: 6.088563416 | Q87: 9.723311075 | R87: 7.206046122 | S87: 3.55869333 | T87: 21.67886594 | U87: 1.071483159 | V87: 11.85244392 | X87: 19.25781581 | Y87: 109.8663711 | Z87: 31.15079024 | AA87: 12.72913867 | AB87: 21.10723203 | AC87: 15.30493631 | AD87: 6.897788126 | AE87: 48.66478599 | AF87: 1.164768682 | AG87: 26.01488325
A88: 43 | B88: 47.88189731 | C88: 105.1477733 | D88: 0 | E88: 0 | G88: 46.88189731 | H88: 104.1477733 | J88: 0 | K88: 0 | M88: 3.271645135 | N88: 3.57449681 | O88: 18.69374486 | P88: 22.34201051 | Q88: 2.196576779 | R88: 6.840173273 | S88: 13.3578901 | T88: 7.672706677 | U88: 4.020204649 | V88: 4.498787287 | X88: 6.236142036 | Y88: 6.934215148 | Z88: 41.78408189 | AA88: 50.19333423 | AB88: 3.758109476 | AC88: 14.46159939 | AD88: 29.48493669 | AE88: 16.38058889 | AF88: 7.961571716 | AG88: 9.064704697
A89: 44 | B89: 35.06387795 | C89: 75.60223868 | D89: 0 | E89: 0 | G89: 34.06387795 | H89: 74.60223868 | J89: 0 | K89: 0 | M89: 4.484664549 | N89: 19.78613095 | O89: 4.223439534 | P89: 6.569642924 | Q89: 11.07229472 | R89: 10.94575843 | S89: 9.202516108 | T89: 2.207650126 | U89: 5.282059314 | V89: 2.821050964 | X89: 9.032151786 | Y89: 44.30203183 | Z89: 8.430028125 | AA89: 13.83802694 | AB89: 24.21663933 | AC89: 23.92497318 | AD89: 19.90679963 | AE89: 3.783633541 | AF89: 10.87014672 | AG89: 5.197522471
A90: 45 | B90: 46.59407138 | C90: 102.1793345 | D90: 0 | E90: 0 | G90: 45.59407138 | H90: 101.1793345 | J90: 0 | K90: 0 | M90: 6.356011926 | N90: 17.52283153 | O90: 3.957721347 | P90: 18.75750658 | Q90: 1.165724383 | R90: 16.47880626 | S90: 1.58381784 | T90: 3.18321068 | U90: 3.258878271 | V90: 0.7763231131 | X90: 13.34560749 | Y90: 39.08512667 | Z90: 7.817547706 | AA90: 41.93105266 | AB90: 1.381994702 | AC90: 36.67864843 | AD90: 2.345700122 | AE90: 6.032300618 | AF90: 6.206714415 | AG90: 0.7763231131
A91: 46 | B91: 25.02403325 | C91: 52.46039663 | D91: 0 | E91: 0 | G91: 24.02403325 | H91: 51.46039663 | J91: 0 | K91: 0 | M91: 2.350792667 | N91: 10.23022464 | O91: 11.42484259 | P91: 1.018173346 | Q91: 11.78638523 | R91: 4.793918746 | S91: 24.14162735 | T91: 1.69963528 | U91: 19.92092111 | V91: 2.655487299 | X91: 4.113577098 | Y91: 22.27566779 | Z91: 25.02926218 | AA91: 1.041889562 | AB91: 25.86261795 | AC91: 9.744982709 | AD91: 54.34145105 | AE91: 2.61265932 | AF91: 44.61272316 | AG91: 4.815898225
A92: 47 | B92: 38.04114071 | C92: 83.12216316 | D92: 0 | E92: 0 | G92: 37.04114071 | H92: 82.12216316 | J92: 0 | K92: 0 | M92: 32.18179773 | N92: 3.273984695 | O92: 2.089062362 | P92: 0.4962959265 | Q92: 13.129225 | R92: 2.189436801 | S92: 6.373868113 | T92: 9.504443323 | U92: 8.486028315 | V92: 10.80791749 | X92: 72.87404376 | Y92: 6.241534722 | Z92: 3.510288745 | AA92: 0.4962959265 | AB92: 28.95786363 | AC92: 3.741651825 | AD92: 13.386766 | AE92: 20.60274186 | AF92: 18.25529527 | AG92: 23.60724982
A93: 48 | B93: 52.35889628 | C93: 115.4672559 | D93: 0 | E93: 0 | G93: 51.35889628 | H93: 114.4672559 | J93: 0 | K93: 0 | M93: 13.04776842 | N93: 12.94834144 | O93: 10.86513172 | P93: 15.4976547 | Q93: 33.44430965 | R93: 13.65868224 | S93: 6.854976601 | T93: 9.565093754 | U93: 3.213177176 | V93: 9.997867901 | X93: 28.77010621 | Y93: 28.54092702 | Z93: 23.73912862 | AA93: 34.41709409 | AB93: 75.78413375 | AC93: 30.17826256 | AD93: 14.49572107 | AE93: 20.7425411 | AF93: 6.101373392 | AG93: 21.74008551
A94: 49 | B94: 55.28822626 | C94: 122.2193615 | D94: 0 | E94: 0 | G94: 54.28822626 | H94: 121.2193615 | J94: 0 | K94: 0 | M94: 14.77357808 | N94: 7.83239738 | O94: 1.768324409 | P94: 30.91392639 | Q94: 7.371962659 | R94: 28.21327588 | S94: 7.347641981 | T94: 1.664621044 | U94: 7.802028525 | V94: 30.64643886 | X94: 32.74809748 | Y94: 16.74867596 | Z94: 2.770987763 | AA94: 69.95160033 | AB94: 15.68737393 | AC94: 63.7266009 | AD94: 15.63131477 | AE94: 2.531951507 | AF94: 16.67867575 | AG94: 69.33504158
A95: 50 | B95: 14.67749079 | C95: 28.61161628 | D95: 0 | E95: 0 | G95: 13.67749079 | H95: 27.61161628 | J95: 0 | K95: 0 | M95: 2.568133597 | N95: 2.383110633 | O95: 7.678727019 | P95: 2.047519545 | Q95: 3.755902339 | R95: 1.127397042 | S95: 2.948967748 | T95: 11.03187527 | U95: 4.826604349 | V95: 8.1058029 | X95: 4.614547941 | Y95: 4.188070008 | Z95: 16.39446578 | AA95: 3.41453255 | AB95: 7.352354891 | AC95: 1.293650181 | AD95: 5.492370659 | AE95: 24.1234725 | AF95: 9.820323025 | AG95: 17.37887569
A96: 51 | B96: 27.72169243 | C96: 58.67850105 | D96: 0 | E96: 0 | G96: 26.72169243 | H96: 57.67850105 | J96: 0 | K96: 0 | M96: 3.959002334 | N96: 13.08464004 | O96: 2.544955301 | P96: 8.133094749 | Q96: 0.819123443 | R96: 7.309361624 | S96: 11.43529112 | T96: 5.651800069 | U96: 10.34058739 | V96: 6.482823098 | X96: 7.820500381 | Y96: 28.8550953 | Z96: 4.561121968 | AA96: 17.4417834 | AB96: 0.819123443 | AC96: 15.54307854 | AD96: 25.05334604 | AE96: 11.72239916 | AF96: 22.53005394 | AG96: 13.63790724
A97: 52 | B97: 42.9978326 | C97: 93.89000413 | D97: 0 | E97: 0 | G97: 41.9978326 | H97: 92.89000413 | J97: 0 | K97: 0 | M97: 10.51745315 | N97: 18.22511634 | O97: 12.49003641 | P97: 1.765226702 | Q97: 20.71946657 | R97: 2.202709971 | S97: 6.945158346 | T97: 2.76046311 | U97: 12.86998416 | V97: 1.825665783 | X97: 22.9377295 | Y97: 40.70389315 | Z97: 27.48453393 | AA97: 2.763847548 | AB97: 46.45337045 | AC97: 3.772246483 | AD97: 14.70358999 | AE97: 5.057867467 | AF97: 28.36031349 | AG97: 2.903159631
A98: 53 | B98: 67.60525853 | C98: 150.6101209 | D98: 0 | E98: 25.6101209 | G98: 66.60525853 | H98: 124 | J98: 0 | K98: 1 | M98: 16.12853025 | N98: 14.02144445 | O98: 30.72645872 | P98: 6.728825117 | Q98: 6.128309809 | R98: 13.80765324 | S98: 3.415302628 | T98: 6.005339743 | U98: 1.368298522 | V98: 2.5024861 | X98: 35.87126222 | Y98: 31.01442945 | Z98: 69.51948734 | AA98: 14.2049419 | AB98: 12.82075411 | AC98: 30.52164071 | AD98: 6.567272558 | AE98: 12.53730811 | AF98: 1.848928093 | AG98: 4.46323046
A99: 54 | B99: 21.9762256 | C99: 45.4352 | D99: 0 | E99: 0 | G99: 20.9762256 | H99: 44.4352 | J99: 0 | K99: 0 | M99: 8.744935036 | N99: 1.135073273 | O99: 3.165529237 | P99: 8.930688052 | Q99: 9.072078652 | R99: 17.46919471 | S99: 0.8968899388 | T99: 7.778085544 | U99: 11.08228018 | V99: 36.8120556 | X99: 18.85207526 | Y99: 1.311343894 | Z99: 5.991544891 | AA99: 19.28023596 | AB99: 19.60614129 | AC99: 38.96149381 | AD99: 0.8968899388 | AE99: 16.62348718 | AF99: 24.23965581 | AG99: 83.54678815
A100: 55 | B100: 41.77254128 | C100: 91.06570766 | D100: 0 | E100: 0 | G100: 40.77254128 | H100: 90.06570766 | J100: 0 | K100: 0 | M100: 2.57285657 | N100: 1.755939318 | O100: 25.51699269 | P100: 11.9267527 | Q100: 2.327913341 | R100: 6.31990628 | S100: 7.606400472 | T100: 5.095312445 | U100: 28.04455827 | V100: 7.351262147 | X100: 4.625434394 | Y100: 2.742440128 | Z100: 57.51166816 | AA100: 26.18616498 | AB100: 4.060840251 | AC100: 13.26238397 | AD100: 16.22775309 | AE100: 10.43969519 | AF100: 63.33770682 | AG100: 15.63965925
A101: 56 | B101: 31.42011386 | C101: 67.20336244 | D101: 0 | E101: 0 | G101: 30.42011386 | H101: 66.20336244 | J101: 0 | K101: 0 | M101: 3.383864601 | N101: 1.996764728 | O101: 13.62144468 | P101: 12.41803985 | Q101: 23.91106367 | R101: 2.989988614 | S101: 19.60403923 | T101: 8.255140377 | U101: 4.437722047 | V101: 4.574482293 | X101: 6.494807905 | Y101: 3.297542698 | Z101: 30.09242998 | AA101: 27.31858186 | AB101: 53.81000175 | AC101: 5.586923756 | AD101: 43.88231043 | AE101: 17.72309857 | AF101: 8.923949319 | AG101: 9.239181685
A102: 57 | B102: 26.2048168 | C102: 55.18210271 | D102: 0 | E102: 0 | G102: 25.2048168 | H102: 54.18210271 | J102: 0 | K102: 0 | M102: 2.898654796 | N102: 11.03633911 | O102: 7.010897749 | P102: 5.258925139 | Q102: 2.850108523 | R102: 2.723481345 | S102: 62.34356264 | T102: 4.900736876 | U102: 5.555153786 | V102: 8.862155307 | X102: 5.376399304 | Y102: 24.13376165 | Z102: 14.85511931 | AA102: 10.81682245 | AB102: 5.264500145 | AC102: 4.972624501 | AD102: 142.3969119 | AE102: 9.991198498 | AF102: 11.49962948 | AG102: 19.12226798
A103: 58 | B103: 65.31615266 | C103: 145.3337319 | D103: 0 | E103: 20.33373188 | G103: 64.31615266 | H103: 124 | J103: 0 | K103: 1 | M103: 6.16585531 | N103: 39.05575776 | O103: 9.833075737 | P103: 10.26146386 | Q103: 7.069327371 | R103: 34.32143223 | S103: 4.38258432 | T103: 3.375390336 | U103: 4.334532781 | V103: 7.269730986 | X103: 12.90729649 | Y103: 88.71852163 | Z103: 21.36023957 | AA103: 22.34767419 | AB103: 14.98979959 | AC103: 77.8059013 | AD103: 8.796856857 | AE103: 6.475274725 | AF103: 8.68609806 | AG103: 15.45172992
A104: 59 | B104: 22.14255327 | C104: 45.81858529 | D104: 0 | E104: 0 | G104: 21.14255327 | H104: 44.81858529 | J104: 0 | K104: 0 | M104: 3.45732803 | N104: 1.328862475 | O104: 5.853438981 | P104: 11.50292378 | Q104: 3.455986971 | R104: 16.11255235 | S104: 4.994724297 | T104: 5.158418313 | U104: 8.018519566 | V104: 21.51391903 | X104: 6.664141109 | Y104: 1.758028005 | Z104: 12.18717685 | AA104: 25.20923932 | AB104: 6.661049969 | AC104: 35.83443316 | AD104: 10.2078395 | AE104: 10.58515421 | AF104: 17.1776876 | AG104: 48.28458337
A105: 60 | B105: 39.86195146 | C105: 86.98608212 | D105: 0 | E105: 0 | G105: 38.86195146 | H105: 85.98608212 | J105: 0 | K105: 0 | M105: 24.6053238 | N105: 6.774059351 | O105: 7.731061794 | P105: 0.7515065121 | Q105: 4.370433749 | R105: 5.551080591 | S105: 6.282911639 | T105: 4.622933382 | U105: 4.33005253 | V105: 6.314337031 | X105: 55.41027136 | Y105: 14.3092068 | Z105: 16.51509744 | AA105: 0.7515065121 | AB105: 8.768849792 | AC105: 11.49024076 | AD105: 13.17711133 | AE105: 9.350861446 | AF105: 8.675771081 | AG105: 13.24954686
A106: 61 | B106: 33.75452124 | C106: 72.58417146 | D106: 0 | E106: 0 | G106: 32.75452124 | H106: 71.58417146 | J106: 0 | K106: 0 | M106: 4.596850317 | N106: 4.085644848 | O106: 11.62197957 | P106: 13.45004651 | Q106: 8.259295814 | R106: 3.030235517 | S106: 11.50316519 | T106: 4.317326227 | U106: 34.84208207 | V106: 11.48150693 | X106: 9.290739981 | Y106: 8.112411374 | Z106: 25.48366291 | AA106: 29.6973572 | AB106: 17.73267685 | AC106: 5.679692867 | AD106: 25.20979576 | AE106: 8.646436953 | AF106: 79.00599917 | AG106: 25.15987346
A107: 62 | B107: 31.3826085 | C107: 67.11691259 | D107: 0 | E107: 0 | G107: 30.3826085 | H107: 66.11691259 | J107: 0 | K107: 0 | M107: 6.231539939 | N107: 3.397681809 | O107: 17.82434015 | P107: 3.929046607 | Q107: 2.480105227 | R107: 3.508366742 | S107: 9.395094809 | T107: 10.60848579 | U107: 3.19739706 | V107: 4.678060537 | X107: 13.05869956 | Y107: 6.526656569 | Z107: 39.78010403 | AA107: 7.75145243 | AB107: 4.411642549 | AC107: 6.78178534 | AD107: 20.35069353 | AE107: 23.14755974 | AF107: 6.065000223 | AG107: 9.477929538
A108: 63 | B108: 52.16872547 | C108: 115.0289122 | D108: 0 | E108: 0 | G108: 51.16872547 | H108: 114.0289122 | J108: 0 | K108: 0 | M108: 14.78906543 | N108: 1.215300803 | O108: 8.718288384 | P108: 27.44607085 | Q108: 27.01715151 | R108: 44.34342176 | S108: 1.832356152 | T108: 6.389178641 | U108: 6.082442533 | V108: 7.380541123 | X108: 32.78379581 | Y108: 1.496268352 | Z108: 18.79065473 | AA108: 61.95819331 | AB108: 60.96953422 | AC108: 100.9065872 | AD108: 2.918580931 | AE108: 13.42205677 | AF108: 12.71503004 | AG108: 15.70714729
A109: 64 | B109: 49.37535113 | C109: 108.5901844 | D109: 0 | E109: 0 | G109: 48.37535113 | H109: 107.5901844 | J109: 0 | K109: 0 | M109: 5.781215362 | N109: 31.31298074 | O109: 7.976186008 | P109: 4.304969024 | Q109: 7.94493557 | R109: 27.69263832 | S109: 4.317250412 | T109: 5.969854493 | U109: 5.27063341 | V109: 15.07653094 | X109: 12.02070141 | Y109: 70.8714206 | Z109: 17.08010875 | AA109: 8.6179536 | AB109: 17.00807649 | AC109: 62.52653133 | AD109: 8.646262199 | AE109: 12.45551461 | AF109: 10.84381001 | AG109: 33.44640382
A110: 65 | B110: =SUMPRODUCT(M110:V110,valid_event) -> 58.18319304 | C110: =SUMPRODUCT(X110:AG110,valid_event) -> 128.89226 | D110: =MAX($B110-attachment,0)-MAX($B110-(attachment+coverage),0) -> 0 | E110: =MAX($C110-attachment,0)-MAX($C110-(attachment+coverage),0) -> 3.892259962 | G110: =MAX(B110-bkpt_1_x,0)-MAX(B110-attachment,0) -> 57.18319304 | H110: =MAX(C110-bkpt_1_x,0)-MAX(C110-attachment,0) -> 124 | J110: =IF(B110>attachment,1,0) -> 0 | K110: =IF(C110>attachment,1,0) -> 1 | M110: 25.03079872 | N110: 23.93382845 | O110: 4.977794503 | P110: 4.240771372 | Q110: 3.055614842 | R110: 9.747881773 | S110: 6.084577502 | T110: 2.864382406 | U110: 6.763361656 | V110: 9.29657943 | X110: =IF(M110>bkpt_2_x,slope3*(M110-bkpt_2_x)+bkpt_2_y,IF(M110>bkpt_1_x,slope2*(M110-bkpt_1_x)+bkpt_1_y,slope1*M110)) -> 56.39099105 | Y110: =IF(N110>bkpt_2_x,slope3*(N110-bkpt_2_x)+bkpt_2_y,IF(N110>bkpt_1_x,slope2*(N110-bkpt_1_x)+bkpt_1_y,slope1*N110)) -> 53.86247457 | Z110: =IF(O110>bkpt_2_x,slope3*(O110-bkpt_2_x)+bkpt_2_y,IF(O110>bkpt_1_x,slope2*(O110-bkpt_1_x)+bkpt_1_y,slope1*O110)) -> 10.16881633 | AA110: =IF(P110>bkpt_2_x,slope3*(P110-bkpt_2_x)+bkpt_2_y,IF(P110>bkpt_1_x,slope2*(P110-bkpt_1_x)+bkpt_1_y,slope1*P110)) -> 8.469978013 | AB110: =IF(Q110>bkpt_2_x,slope3*(Q110-bkpt_2_x)+bkpt_2_y,IF(Q110>bkpt_1_x,slope2*(Q110-bkpt_1_x)+bkpt_1_y,slope1*Q110)) -> 5.738192211 | AC110: =IF(R110>bkpt_2_x,slope3*(R110-bkpt_2_x)+bkpt_2_y,IF(R110>bkpt_1_x,slope2*(R110-bkpt_1_x)+bkpt_1_y,slope1*R110)) -> 21.16386749 | AD110: =IF(S110>bkpt_2_x,slope3*(S110-bkpt_2_x)+bkpt_2_y,IF(S110>bkpt_1_x,slope2*(S110-bkpt_1_x)+bkpt_1_y,slope1*S110)) -> 12.71995114 | AE110: =IF(T110>bkpt_2_x,slope3*(T110-bkpt_2_x)+bkpt_2_y,IF(T110>bkpt_1_x,slope2*(T110-bkpt_1_x)+bkpt_1_y,slope1*T110)) -> 5.297401446 | AF110: =IF(U110>bkpt_2_x,slope3*(U110-bkpt_2_x)+bkpt_2_y,IF(U110>bkpt_1_x,slope2*(U110-bkpt_1_x)+bkpt_1_y,slope1*U110)) -> 14.28454862 | AG110: =IF(V110>bkpt_2_x,slope3*(V110-bkpt_2_x)+bkpt_2_y,IF(V110>bkpt_1_x,slope2*(V110-bkpt_1_x)+bkpt_1_y,slope1*V110)) -> 20.12361559
A111: 66 | B111: 37.67996522 | C111: 81.63231983 | D111: 0 | E111: 0 | G111: 36.67996522 | H111: 80.63231983 | J111: 0 | K111: 0 | M111: 17.3560412 | N111: 2.609147232 | O111: 7.507022737 | P111: 10.20775405 | Q111: 3.606030741 | R111: 6.735152344 | S111: 9.996843599 | T111: 6.112216182 | U111: 9.790520806 | V111: 9.083927729 | X111: 38.70067496 | Y111: 4.709084371 | Z111: 15.99868741 | AA111: 22.22387309 | AB111: 7.006900858 | AC111: 14.21952615 | AD111: 21.7377245 | AE111: 12.7836583 | AF111: 21.26215046 | AG111: 19.63345342
A112: =A111+1 -> 67 | B112: 32.31039371 | C112: 69.25545749 | D112: 0 | E112: 0 | G112: 31.31039371 | H112: 68.25545749 | J112: 0 | K112: 0 | M112: 12.37855919 | N112: 14.30511696 | O112: 3.539993811 | P112: 2.086723747 | Q112: 26.66115046 | R112: 16.27232929 | S112: 5.188773329 | T112: 21.57047451 | U112: 14.89395939 | V112: 11.88919234 | X112: 27.22757893 | Y112: 31.6682946 | Z112: 6.854685734 | AA112: 3.504898236 | AB112: 60.14895181 | AC112: 36.20271902 | AD112: 10.65512252 | AE112: 48.41494374 | AF112: 33.0255764 | AG112: 26.09958834
A113: 68 | B113: 39.65110019 | C113: 86.17578595 | D113: 0 | E113: 0 | G113: 38.65110019 | H113: 85.17578595 | J113: 0 | K113: 0 | M113: 5.488804419 | N113: 20.44695698 | O113: 1.178516666 | P113: 12.53682213 | Q113: 7.587019512 | R113: 21.59342683 | S113: 5.990191119 | T113: 11.1176786 | U113: 7.645112612 | V113: 2.573006947 | X113: 11.34669419 | Y113: 45.82523584 | Z113: 1.411480914 | AA113: 27.592375 | AB113: 16.18307997 | AC113: 48.46784885 | AD113: 12.50239053 | AE113: 24.32124917 | AF113: 16.31698457 | AG113: 4.625781013
A114: 69 | B114: 21.77461963 | C114: 45.27439916 | D114: 0 | E114: 0 | G114: 20.77461963 | H114: 44.27439916 | J114: 0 | K114: 0 | M114: 4.296541502 | N114: 0.7671257422 | O114: 12.56940326 | P114: 4.141549127 | Q114: 2.982965618 | R114: 2.602189351 | S114: 9.094357765 | T114: 16.92341101 | U114: 1.002855802 | V114: 16.23785823 | X114: 8.598528161 | Y114: 0.7671257422 | Z114: 27.66747451 | AA114: 8.241270738 | AB114: 5.570735749 | AC114: 4.693046455 | AD114: 19.65749465 | AE114: 37.70346237 | AF114: 1.006582624 | AG114: 36.12326322
A115: 70 | B115: 45.90803177 | C115: 100.5980132 | D115: 0 | E115: 0 | G115: 44.90803177 | H115: 99.59801324 | J115: 0 | K115: 0 | M115: 6.99006416 | N115: 24.73711136 | O115: 9.230627712 | P115: 4.950228542 | Q115: 3.224766248 | R115: 3.952899338 | S115: 9.684280537 | T115: 24.18224375 | U115: 30.1827621 | V115: 3.130155885 | X115: 14.80709789 | Y115: 55.71404169 | Z115: 19.97159688 | AA115: 10.10527679 | AB115: 6.128086201 | AC115: 7.806432975 | AD115: 21.01726664 | AE115: 54.43507184 | AF115: 68.26626665 | AG115: 5.910009315
A116: 71 | B116: 31.32552339 | C116: 66.98533141 | D116: 0 | E116: 0 | G116: 30.32552339 | H116: 65.98533141 | J116: 0 | K116: 0 | M116: 2.679862335 | N116: 15.47841116 | O116: 9.610568419 | P116: 3.556681473 | Q116: 10.98285463 | R116: 36.7481611 | S116: 9.719875216 | T116: 2.152089324 | U116: 4.667813811 | V116: 3.278090696 | X116: 4.872082681 | Y116: 34.37273773 | Z116: 20.84736021 | AA116: 6.893150795 | AB116: 24.01047992 | AC116: 83.39951134 | AD116: 21.09931237 | AE116: 3.655565892 | AF116: 9.454310833 | AG116: 6.250999055
A117: 72 | B117: 39.64311182 | C117: 86.15737274 | D117: 0 | E117: 0 | G117: 38.64311182 | H117: 85.15737274 | J117: 0 | K117: 0 | M117: 13.5353178 | N117: 3.53544128 | O117: 7.848972847 | P117: 14.72337989 | Q117: 3.978341902 | R117: 0.4901517584 | S117: 11.43297437 | T117: 3.241294931 | U117: 3.423436565 | V117: 17.79665488 | X117: 29.89390753 | Y117: 6.844192151 | Z117: 16.78688241 | AA117: 32.63239065 | AB117: 7.865078084 | AC117: 0.4901517584 | AD117: 25.04800592 | AE117: 6.166184815 | AF117: 6.586021282 | AG117: 39.71628951
A118: 73 | B118: 36.46591422 | C118: 78.83393227 | D118: 0 | E118: 0 | G118: 35.46591422 | H118: 77.83393227 | J118: 0 | K118: 0 | M118: 4.614504538 | N118: 20.84076333 | O118: 4.555459075 | P118: 6.455187276 | Q118: 2.772688151 | R118: 20.29162631 | S118: 8.761877303 | T118: 9.777174565 | U118: 4.677418335 | V118: 2.032602324 | X118: 9.33143296 | Y118: 46.73295947 | Z118: 9.195333168 | AA118: 13.57420667 | AB118: 5.086046188 | AC118: 45.46719865 | AD118: 18.89112718 | AE118: 21.23138737 | AF118: 9.476449263 | AG118: 3.380148357
A119: 74 | B119: 15.09524701 | C119: 29.57454437 | D119: 0 | E119: 0 | G119: 14.09524701 | H119: 28.57454437 | J119: 0 | K119: 0 | M119: 4.502805336 | N119: 4.279571601 | O119: 4.091503429 | P119: 2.221366647 | Q119: 2.368446085 | R119: 10.35899756 | S119: 3.311257746 | T119: 11.05380754 | U119: 5.516051762 | V119: 3.472647585 | X119: 9.0739663 | Y119: 8.55941254 | Z119: 8.125915404 | AA119: 3.815250121 | AB119: 4.154268226 | AC119: 22.57248937 | AD119: 6.327449106 | AE119: 24.17402638 | AF119: 11.40949931 | AG119: 6.699452684
A120: 75 | B120: 60.26670364 | C120: 133.6947519 | D120: 0 | E120: 8.694751901 | G120: 59.26670364 | H120: 124 | J120: 0 | K120: 1 | M120: 2.127882303 | N120: 16.95419582 | O120: 38.68840118 | P120: 2.496224335 | Q120: 16.51769151 | R120: 13.36525546 | S120: 9.403019211 | T120: 14.71972736 | U120: 5.232124123 | V120: 1.710910997 | X120: 3.59976871 | Y120: 37.77442137 | Z120: 87.87176473 | AA120: 4.448797091 | AB120: 36.76827892 | AC120: 29.50191382 | AD120: 20.36895928 | AE120: 32.62397155 | AF120: 10.7550461 | AG120: 2.638649847
A121: 76 | B121: 16.91057018 | C121: 33.75886428 | D121: 0 | E121: 0 | G121: 15.91057018 | H121: 32.75886428 | J121: 0 | K121: 0 | M121: 1.617872309 | N121: 1.495945918 | O121: 9.937989347 | P121: 3.858762611 | Q121: 8.651899009 | R121: 7.218199204 | S121: 14.40947282 | T121: 16.73486472 | U121: 19.25060182 | V121: 3.437531784 | X121: 2.424195672 | Y121: 2.143155341 | Z121: 21.60206544 | AA121: 7.589447819 | AB121: 18.63762721 | AC121: 15.33294917 | AD121: 31.90883484 | AE121: 37.26886319 | AF121: 43.06763719 | AG121: 6.618510761
A122: 77 | B122: 57.5674165 | C122: 127.472895 | D122: 0 | E122: 2.47289504 | G122: 56.5674165 | H122: 124 | J122: 0 | K122: 1 | M122: 1.262837878 | N122: 24.11044284 | O122: 26.81195418 | P122: 5.382181601 | Q122: 1.580991565 | R122: 13.42537954 | S122: 4.917240296 | T122: 58.11603596 | U122: 2.816380322 | V122: 2.375627539 | X122: 1.605841309 | Y122: 54.26957075 | Z122: 60.49655439 | AA122: 11.10092859 | AB122: 2.339185558 | AC122: 29.64049983 | AD122: 10.02923888 | AE122: 132.6524629 | AF122: 5.186756642 | AG122: 4.170821477
A123: 78 | B123: 34.76867379 | C123: 74.92179308 | D123: 0 | E123: 0 | G123: 33.76867379 | H123: 73.92179308 | J123: 0 | K123: 0 | M123: 17.32869846 | N123: 9.670971812 | O123: 3.914333886 | P123: 3.854669628 | Q123: 12.53748912 | R123: 7.709094761 | S123: 5.017389186 | T123: 18.75055245 | U123: 3.946586726 | V123: 15.91268754 | X123: 38.63764996 | Y123: 20.98659003 | Z123: 7.717539607 | AA123: 7.580013493 | AB123: 27.59391243 | AC123: 16.46446342 | AD123: 10.26008207 | AE123: 41.91502341 | AF123: 7.791882403 | AG123: 35.37374478
A124: 79 | B124: 45.89150396 | C124: 100.5599166 | D124: 0 | E124: 0 | G124: 44.89150396 | H124: 99.55991663 | J124: 0 | K124: 0 | M124: 23.00666007 | N124: 10.51268119 | O124: 10.0460821 | P124: 2.3260806 | Q124: 10.89814753 | R124: 12.29957405 | S124: 31.30296288 | T124: 14.45443221 | U124: 2.335785316 | V124: 45.60119626 | X124: 51.72535146 | Y124: 22.92673015 | Z124: 21.85121924 | AA124: 4.056615783 | AB124: 23.81523007 | AC124: 27.04551819 | AD124: 70.84832945 | AE124: 32.01246624 | AF124: 4.078985153 | AG124: 103.8057574
A125: 80 | B125: 45.52282659 | C125: 99.7101153 | D125: 0 | E125: 0 | G125: 44.52282659 | H125: 98.7101153 | J125: 0 | K125: 0 | M125: 3.734734743 | N125: 13.06356798 | O125: 12.49452455 | P125: 16.22999932 | Q125: 9.347894906 | R125: 8.081098022 | S125: 63.22440487 | T125: 4.254899562 | U125: 24.67502283 | V125: 3.335178932 | X125: 7.303563583 | Y125: 28.80652419 | Z125: 27.49487909 | AA125: 36.10514843 | AB125: 20.24189776 | AC125: 17.32193094 | AD125: 144.4272532 | AE125: 8.502543491 | AF125: 55.57092762 | AG125: 6.382587439
A126: 81 | B126: 60.23884737 | C126: 133.6305432 | D126: 0 | E126: 8.630543191 | G126: 59.23884737 | H126: 124 | J126: 0 | K126: 1 | M126: 2.72260344 | N126: 4.401338056 | O126: 6.027748672 | P126: 47.0871572 | Q126: 12.54212801 | R126: 8.618179144 | S126: 12.91718029 | T126: 9.056533372 | U126: 4.176084593 | V126: 5.822431497 | X126: 4.97060093 | Y126: 8.840084219 | Z126: 12.58896069 | AA126: 107.2308974 | AB126: 27.60460507 | AC126: 18.55990293 | AD126: 28.46910058 | AE126: 19.57030942 | AF126: 8.320874986 | AG126: 12.1157046
A127: 82 | B127: 27.94782218 | C127: 59.19973012 | D127: 0 | E127: 0 | G127: 26.94782218 | H127: 58.19973012 | J127: 0 | K127: 0 | M127: 8.553141221 | N127: 2.164156791 | O127: 8.817694702 | P127: 8.412829465 | Q127: 13.70488134 | R127: 8.74596219 | S127: 20.29332974 | T127: 2.714202651 | U127: 3.625339728 | V127: 7.705989195 | X127: 18.40999051 | Y127: 3.683381403 | Z127: 19.01978629 | AA127: 18.08657192 | AB127: 30.2847515 | AC127: 18.85444285 | AD127: 45.47112505 | AE127: 4.951237111 | AF127: 7.051408072 | AG127: 16.45730509
A128: 83 | B128: 44.05612977 | C128: 96.32937912 | D128: 0 | E128: 0 | G128: 43.05612977 | H128: 95.32937912 | J128: 0 | K128: 0 | M128: 28.5644453 | N128: 2.437885679 | O128: 3.571718606 | P128: 9.482080183 | Q128: 5.316820528 | R128: 14.85442756 | S128: 12.66172518 | T128: 32.17314367 | U128: 4.88442347 | V128: 7.177139074 | X128: 64.53604642 | Y128: 4.314326491 | Z128: 6.927811388 | AA128: 20.55119482 | AB128: 10.95027132 | AC128: 32.93445551 | AD128: 27.88027653 | AE128: 72.85409616 | AF128: 9.953596098 | AG128: 15.23830556
A129: 84 | B129: 45.63679438 | C129: 99.97281106 | D129: 0 | E129: 0 | G129: 44.63679438 | H129: 98.97281106 | J129: 0 | K129: 0 | M129: 16.80695797 | N129: 16.83928698 | O129: 3.931870197 | P129: 8.058679235 | Q129: 29.72727412 | R129: 7.874279948 | S129: 4.823096364 | T129: 7.508320228 | U129: 3.471965911 | V129: 6.203002133 | X129: 37.43503812 | Y129: 37.5095565 | Z129: 7.757960804 | AA129: 17.27025564 | AB129: 67.21636684 | AC129: 16.84521528 | AD129: 9.812237119 | AE129: 16.00167813 | AF129: 6.697881424 | AG129: 12.99291992
A130: 85 | B130: 19.93396649 | C130: 40.72779275 | D130: 0 | E130: 0 | G130: 18.93396649 | H130: 39.72779275 | J130: 0 | K130: 0 | M130: 3.442689363 | N130: 9.095269777 | O130: 5.535121817 | P130: 1.860885528 | Q130: 24.94214013 | R130: 58.4292673 | S130: 63.33301358 | T130: 3.391350873 | U130: 1.281115448 | V130: 3.050707412 | X130: 6.630398981 | Y130: 19.65959684 | Z130: 11.45345579 | AA130: 2.984341142 | AB130: 56.186633 | AC130: 133.3744611 | AD130: 144.6775963 | AE130: 6.512063761 | AF130: 1.647971108 | AG130: 5.726880585
A131: 86 | B131: 253.7493543 | C131: 810.5706062 | D131: 30 | E131: 30 | G131: 124 | H131: 124 | J131: 1 | K131: 1 | M131: 79.19210299 | N131: 21.01815864 | O131: 4.359466556 | P131: 149.1796261 | Q131: 3.703490225 | R131: 1.185727154 | S131: 6.827312074 | T131: 2.119479866 | U131: 4.368830758 | V131: 7.002676729 | X131: 181.2327974 | Y131: 47.14185566 | Z131: 8.743570412 | AA131: 573.4523827 | AB131: 7.231544968 | AC131: 1.42810109 | AD131: 14.43195433 | AE131: 3.580401091 | AF131: 8.765154897 | AG131: 14.83616986
A132: 87 | B132: 18.35061856 | C132: 37.07817577 | D132: 0 | E132: 0 | G132: 17.35061856 | H132: 36.07817577 | J132: 0 | K132: 0 | M132: 4.495958134 | N132: 6.484006261 | O132: 5.478848437 | P132: 1.891805725 | Q132: 1.89515862 | R132: 10.82128882 | S132: 27.08249057 | T132: 4.516004922 | U132: 5.821091726 | V132: 12.17856309 | X132: 9.058183499 | Y132: 13.64063443 | Z132: 11.32374565 | AA132: 3.055612197 | AB132: 3.06334062 | AC132: 23.63807073 | AD132: 61.12014076 | AE132: 9.104391345 | AF132: 12.11261643 | AG132: 26.76658792
A133: 88 | B133: 26.07531439 | C133: 54.88359967 | D133: 0 | E133: 0 | G133: 25.07531439 | H133: 53.88359967 | J133: 0 | K133: 0 | M133: 4.808322617 | N133: 5.944511946 | O133: 10.47764975 | P133: 4.844830079 | Q133: 2.484088524 | R133: 10.4491638 | S133: 12.59340034 | T133: 0.9852562569 | U133: 16.25008878 | V133: 23.71767374 | X133: 9.778183633 | Y133: 12.39710004 | Z133: 22.84598267 | AA133: 9.862333332 | AB133: 4.420824048 | AC133: 22.78032255 | AD133: 27.72278777 | AE133: 0.9852562569 | AF133: 36.15145464 | AG133: 53.36423797
A134: 89 | B134: 17.76372072 | C134: 35.72537626 | D134: 0 | E134: 0 | G134: 16.76372072 | H134: 34.72537626 | J134: 0 | K134: 0 | M134: 5.445746887 | N134: 2.085653312 | O134: 7.098565873 | P134: 3.13375465 | Q134: 17.01438697 | R134: 7.41261739 | S134: 6.29632866 | T134: 6.161850312 | U134: 2.381727407 | V134: 14.92351835 | X134: 11.24744657 | Y134: 3.502430885 | Z134: 15.05719434 | AA134: 5.918304468 | AB134: 37.91316197 | AC134: 15.78108308 | AD134: 13.20803756 | AE134: 12.89806497 | AF134: 4.184881672 | AG134: 33.09370979
A135: 90 | B135: 10.08093009 | C135: 18.01654387 | D135: 0 | E135: 0 | G135: 9.080930094 | H135: 17.01654387 | J135: 0 | K135: 0 | M135: 2.480250891 | N135: 4.016155108 | O135: 1.160505484 | P135: 2.42401861 | Q135: 18.9546632 | R135: 14.89896598 | S135: 14.12436076 | T135: 24.1984964 | U135: 1.134723265 | V135: 2.52618199 | X135: 4.411978305 | Y135: 7.952237525 | Z135: 1.369965142 | AA135: 4.282362897 | AB135: 42.38549869 | AC135: 33.03711659 | AD135: 31.25165156 | AE135: 54.47253421 | AF135: 1.310537125 | AG135: 4.517849487
A136: 91 | B136: 37.03981487 | C136: 80.15677327 | D136: 0 | E136: 0 | G136: 36.03981487 | H136: 79.15677327 | J136: 0 | K136: 0 | M136: 1.656351483 | N136: 14.46737803 | O136: 1.212279794 | P136: 19.70380556 | Q136: 8.465303688 | R136: 2.997767209 | S136: 3.958354312 | T136: 12.79984133 | U136: 2.332296185 | V136: 64.01535364 | X136: 2.512890168 | Y136: 32.04230637 | Z136: 1.489304926 | AA136: 44.11227181 | AB136: 18.207525 | AC136: 5.604853418 | AD136: 7.819006689 | AE136: 28.19863426 | AF136: 4.070942706 | AG136: 146.2503901
A137: 92 | B137: 19.40749266 | C137: 40.26594811 | D137: 0 | E137: 0 | G137: 18.40749266 | H137: 39.26594811 | J137: 0 | K137: 0 | M137: 0.8134043038 | N137: 2.243025971 | O137: 0.6105975982 | P137: 15.74046479 | Q137: 7.438312796 | R137: 9.008459893 | S137: 4.581588808 | T137: 4.191154688 | U137: 6.777871041 | V137: 14.64236306 | X137: 0.8134043038 | Y137: 3.865174864 | Z137: 0.6105975982 | AA137: 34.97677134 | AB137: 15.84031099 | AC137: 19.45950005 | AD137: 9.255562203 | AE137: 8.355611556 | AF137: 14.31799275 | AG137: 32.44564685
A138: 93 | B138: 27.63408556 | C138: 58.47656721 | D138: 0 | E138: 0 | G138: 26.63408556 | H138: 57.47656721 | J138: 0 | K138: 0 | M138: 4.159776828 | N138: 2.297075292 | O138: 15.11581839 | P138: 6.061415047 | Q138: 5.381248768 | R138: 1.479227358 | S138: 2.097547894 | T138: 9.41864458 | U138: 0.9618450781 | V138: 1.709432895 | X138: 8.283285588 | Y138: 3.989758548 | Z138: 33.5369614 | AA138: 12.66656168 | AB138: 11.09877841 | AC138: 2.104619061 | AD138: 3.529847897 | AE138: 20.40497576 | AF138: 0.9618450781 | AG138: 2.635242823
A139: 94 | B139: 57.40441821 | C139: 127.097184 | D139: 0 | E139: 2.09718397 | G139: 56.40441821 | H139: 124 | J139: 0 | K139: 1 | M139: 22.65899827 | N139: 23.48716636 | O139: 6.00400048 | P139: 5.254253099 | Q139: 2.422771599 | R139: 5.916984775 | S139: 3.480658574 | T139: 2.661086336 | U139: 1.921546263 | V139: 18.24928432 | X139: 50.923991 | Y139: 52.83291847 | Z139: 12.53422111 | AA139: 10.80605339 | AB139: 4.279488535 | AC139: 12.33364991 | AD139: 6.717918013 | AE139: 4.828804003 | AF139: 3.124164136 | AG139: 40.75960035
A140: 95 | B140: 31.00002976 | C140: 66.2350686 | D140: 0 | E140: 0 | G140: 30.00002976 | H140: 65.2350686 | J140: 0 | K140: 0 | M140: 4.053279607 | N140: 8.803727661 | O140: 15.44481711 | P140: 2.698205386 | Q140: 20.80569346 | R140: 5.377190646 | S140: 5.218936693 | T140: 6.527715911 | U140: 4.486781309 | V140: 46.64898373 | X140: 8.037809495 | Y140: 18.98759226 | Z140: 34.29530343 | AA140: 4.914363415 | AB140: 46.65212342 | AC140: 11.08942444 | AD140: 10.72464908 | AE140: 13.74138517 | AF140: 9.037030917 | AG140: 106.2209075
A141: 96 | B141: 42.04538277 | C141: 91.69460728 | D141: 0 | E141: 0 | G141: 41.04538277 | H141: 90.69460728 | J141: 0 | K141: 0 | M141: 22.14045271 | N141: 9.912757669 | O141: 7.116816514 | P141: 2.875355878 | Q141: 4.845914213 | R141: 5.833403051 | S141: 19.92015875 | T141: 14.73259127 | U141: 6.344822836 | V141: 7.545827188 | X141: 49.7287435 | Y141: 21.54390643 | Z141: 15.09926206 | AA141: 5.322695298 | AB141: 9.86483226 | AC141: 12.14099403 | AD141: 44.61096593 | AE141: 32.65362287 | AF141: 13.31981664 | AG141: 16.08813167
A142: 97 | B142: 41.94126762 | C142: 91.45462187 | D142: 0 | E142: 0 | G142: 40.94126762 | H142: 90.45462187 | J142: 0 | K142: 0 | M142: 1.03060625 | N142: 1.087954713 | O142: 19.16901211 | P142: 20.65369455 | Q142: 7.502927246 | R142: 2.950407889 | S142: 1.278194206 | T142: 4.965970442 | U142: 7.233939591 | V142: 51.47633752 | X142: 1.070547406 | Y142: 1.202735615 | Z142: 42.87957292 | AA142: 46.30176593 | AB142: 15.9892473 | AC142: 5.495690185 | AD142: 1.641237645 | AE142: 10.14156187 | AF142: 15.36923076 | AG142: 117.347958
A143: 98 | B143: 24.30537426 | C143: 50.80388767 | D143: 0 | E143: 0 | G143: 23.30537426 | H143: 49.80388767 | J143: 0 | K143: 0 | M143: 7.740044357 | N143: 1.11300471 | O143: 5.948872736 | P143: 9.503452457 | Q143: 2.337101529 | R143: 19.94491602 | S143: 8.972197809 | T143: 20.73853386 | U143: 3.418089739 | V143: 2.67392332 | X143: 16.53580224 | Y143: 1.260475857 | Z143: 12.40715166 | AA143: 20.60045791 | AB143: 4.082019024 | AC143: 44.66803142 | AD143: 19.37591595 | AE143: 46.49732056 | AF143: 6.573696849 | AG143: 4.858393254
A144: 99 | B144: 16.27887086 | C144: 32.30279733 | D144: 0 | E144: 0 | G144: 15.27887086 | H144: 31.30279733 | J144: 0 | K144: 0 | M144: 2.02980537 | N144: 5.461534149 | O144: 3.114233761 | P144: 5.673297577 | Q144: 7.458675658 | R144: 4.971014711 | S144: 29.92775299 | T144: 9.351225911 | U144: 5.483445181 | V144: 5.489959377 | X144: 3.373701379 | Y144: 11.28383621 | Z144: 5.87330882 | AA144: 11.77195091 | AB144: 15.88724739 | AC144: 10.15318891 | AD144: 67.67847064 | AE144: 20.24957573 | AF144: 11.33434114 | AG144: 11.34935636
A145: 100 | B145: 79.04255879 | C145: 176.973098 | D145: 0 | E145: 30 | G145: 78.04255879 | H145: 124 | J145: 0 | K145: 1 | M145: 37.79854199 | N145: 33.95911519 | O145: 5.935902021 | P145: 1.348999583 | Q145: 20.13720205 | R145: 9.025023187 | S145: 4.374609437 | T145: 17.99969479 | U145: 2.496147475 | V145: 26.04318613 | X145: 85.82063929 | Y145: 76.97076052 | Z145: 12.37725416 | AA145: 1.804444039 | AB145: 45.11125072 | AC145: 19.49767845 | AD145: 8.778474752 | AE145: 40.18429649 | AF145: 4.44861993 | AG145: 58.72454402
A146: 101 | B146: 26.62626111 | C146: 56.15353185 | D146: 0 | E146: 0 | G146: 25.62626111 | H146: 55.15353185 | J146: 0 | K146: 0 | M146: 8.100409297 | N146: 1.927450209 | O146: 7.567106675 | P146: 9.031294924 | Q146: 10.18969573 | R146: 0.8332289669 | S146: 4.05946376 | T146: 9.685138725 | U146: 36.34122589 | V146: 3.305877964 | X146: 17.36644343 | Y146: 3.137772731 | Z146: 16.13718089 | AA146: 19.5121348 | AB146: 22.18224866 | AC146: 0.8332289669 | AD146: 8.052063967 | AE146: 21.01924476 | AF146: 82.46152567 | AG146: 6.315048707
A147: 102 | B147: 25.54771438 | C147: 54.09818652 | D147: 0 | E147: 0 | G147: 24.54771438 | H147: 53.09818652 | J147: 0 | K147: 0 | M147: 0.6699579494 | N147: 3.115792877 | O147: 19.97540989 | P147: 1.786553658 | Q147: 7.957166985 | R147: 3.583238484 | S147: 4.983009537 | T147: 6.323484251 | U147: 9.505200172 | V147: 13.08815134 | X147: 0.6699579494 | Y147: 5.876902581 | Z147: 44.73831981 | AA147: 2.813006182 | AB147: 17.0362699 | AC147: 6.954364706 | AD147: 10.18083698 | AE147: 13.2706312 | AF147: 20.6044864 | AG147: 28.86318883
A148: 103 | B148: 44.40511019 | C148: 97.13377898 | D148: 0 | E148: 0 | G148: 43.40511019 | H148: 96.13377898 | J148: 0 | K148: 0 | M148: 11.52168342 | N148: 13.01322944 | O148: 12.08947931 | P148: 7.780718021 | Q148: 10.99791684 | R148: 28.5723325 | S148: 22.79279624 | T148: 9.379393365 | U148: 11.16114538 | V148: 4.212877643 | X148: 25.25248028 | Y148: 28.69049385 | Z148: 26.56124981 | AA148: 16.62955504 | AB148: 24.04519831 | AC148: 64.55422641 | AD148: 51.23239533 | AE148: 20.31450171 | AF148: 24.42144011 | AG148: 8.405682966
A149: 104 | B149: 21.64380231 | C149: 44.66896433 | D149: 0 | E149: 0 | G149: 20.64380231 | H149: 43.66896433 | J149: 0 | K149: 0 | M149: 3.600138144 | N149: 10.75380608 | O149: 1.940191213 | P149: 5.349666878 | Q149: 2.101953237 | R149: 0.7211887527 | S149: 10.32583392 | T149: 7.891015096 | U149: 3.539855377 | V149: 3.414763767 | X149: 6.993318422 | Y149: 23.48252301 | Z149: 3.167140747 | AA149: 11.02598215 | AB149: 3.540002211 | AC149: 0.7211887527 | AD149: 22.49604718 | AE149: 16.8837898 | AF149: 6.854366645 | AG149: 6.566030483
A150: 105 | B150: 29.69227613 | C150: 63.22069647 | D150: 0 | E150: 0 | G150: 28.69227613 | H150: 62.22069647 | J150: 0 | K150: 0 | M150: 20.05562614 | N150: 3.593846927 | O150: 4.078884576 | P150: 1.963918485 | Q150: 5.084752127 | R150: 4.270483046 | S150: 23.9417174 | T150: 4.859298512 | U150: 2.940769117 | V150: 1.885308615 | X150: 44.92321825 | Y150: 6.978817167 | Z150: 8.096828947 | AA150: 3.221832107 | AB150: 10.41535365 | AC150: 8.538463422 | AD150: 53.88065862 | AE150: 9.895683071 | AF150: 5.473472816 | AG150: 3.040636358
A151: 106 | B151: 53.17356713 | C151: 117.3450722 | D151: 0 | E151: 0 | G151: 52.17356713 | H151: 116.3450722 | J151: 0 | K151: 0 | M151: 16.01875868 | N151: 5.279184062 | O151: 29.6853084 | P151: 2.190315987 | Q151: 2.545179195 | R151: 5.812899299 | S151: 6.55247706 | T151: 3.745717875 | U151: 4.049558935 | V151: 13.14405226 | X151: 35.61823876 | Y151: 10.86351926 | Z151: 67.11963586 | AA151: 3.743678351 | AB151: 4.561638045 | AC151: 12.09373288 | AD151: 13.79845962 | AE151: 7.328879702 | AF151: 8.029233344 | AG151: 28.99204047
A152: 107 | B152: 22.58219026 | C152: 46.83194855 | D152: 0 | E152: 0 | G152: 21.58219026 | H152: 45.83194855 | J152: 0 | K152: 0 | M152: 3.265741746 | N152: 3.32872372 | O152: 3.008651573 | P152: 12.97907322 | Q152: 0.5607647891 | R152: 16.65124059 | S152: 16.82185764 | T152: 14.75043555 | U152: 15.18476083 | V152: 1.910647423 | X152: 6.222534724 | Y152: 6.367708174 | Z152: 5.629941875 | AA152: 28.61176377 | AB152: 0.5607647891 | AC152: 37.07610957 | AD152: 37.46938186 | AE152: 32.69475395 | AF152: 33.69587372 | AG152: 3.09904231
A153: 108 | B153: 37.52660303 | C153: 81.27881998 | D153: 0 | E153: 0 | G153: 36.52660303 | H153: 80.27881998 | J153: 0 | K153: 0 | M153: 2.513211785 | N153: 8.374373612 | O153: 4.263135358 | P153: 22.37588227 | Q153: 11.5598925 | R153: 1.235495442 | S153: 1.861893088 | T153: 15.60297522 | U153: 3.085798003 | V153: 2.432039898 | X153: 4.487953166 | Y153: 17.99793118 | Z153: 8.521527 | AA153: 50.27140864 | AB153: 25.34055222 | AC153: 1.542816993 | AD153: 2.986663567 | AE153: 34.65985788 | AF153: 5.807764398 | AG153: 4.300851965
A154: 109 | B154: 31.49963091 | C154: 67.38664925 | D154: 0 | E154: 0 | G154: 30.49963091 | H154: 66.38664925 | J154: 0 | K154: 0 | M154: 11.70978441 | N154: 3.772891652 | O154: 5.350994135 | P154: 10.66596071 | Q154: 4.208353825 | R154: 8.294045151 | S154: 6.444832817 | T154: 2.35751917 | U154: 12.70067036 | V154: 9.928153 | X154: 25.68605306 | Y154: 7.391515259 | Z154: 11.02904148 | AA154: 23.28003944 | AB154: 8.395255566 | AC154: 17.81277407 | AD154: 13.55033964 | AE154: 4.129081686 | AF154: 27.97004517 | AG154: 21.57939267
A155: 110 | B155: 29.2838263 | C155: 62.27921963 | D155: 0 | E155: 0 | G155: 28.2838263 | H155: 61.27921963 | J155: 0 | K155: 0 | M155: 1.574275 | N155: 4.54548188 | O155: 5.942665152 | P155: 17.22140427 | Q155: 2.724144187 | R155: 1.05853892 | S155: 24.24769288 | T155: 3.491859218 | U155: 14.58805613 | V155: 26.31047312 | X155: 2.323703875 | Y155: 9.172335733 | Z155: 12.39284318 | AA155: 38.39033685 | AB155: 4.97415235 | AC155: 1.134932211 | AD155: 54.5859321 | AE155: 6.743735499 | AF155: 32.32046938 | AG155: 59.34064054
A156: 111 | B156: 54.07321484 | C156: 119.4187602 | D156: 0 | E156: 0 | G156: 53.07321484 | H156: 118.4187602 | J156: 0 | K156: 0 | M156: 27.66241692 | N156: 8.161014149 | O156: 2.5426292 | P156: 15.70715457 | Q156: 5.986249711 | R156: 5.102581587 | S156: 6.492566093 | T156: 3.03592464 | U156: 3.647734835 | V156: 8.397474585 | X156: 62.45687101 | Y156: 17.50613761 | Z156: 4.555760307 | AA156: 34.89999128 | AB156: 12.49330558 | AC156: 10.45645056 | AD156: 13.66036484 | AE156: 5.692806296 | AF156: 7.103028795 | AG156: 18.05117892
A157: 112 | B157: 20.74525594 | C157: 43.09232491 | D157: 0 | E157: 0 | G157: 19.74525594 | H157: 42.09232491 | J157: 0 | K157: 0 | M157: 0.6210651566 | N157: 6.876857475 | O157: 8.965383537 | P157: 4.281949772 | Q157: 6.876498687 | R157: 10.49282105 | S157: 19.71152202 | T157: 5.731263707 | U157: 2.420525099 | V157: 7.311422097 | X157: 0.6210651566 | Y157: 14.54615648 | Z157: 19.36020905 | AA157: 8.564894224 | AB157: 14.54532947 | AC157: 22.88095253 | AD157: 44.13005825 | AE157: 11.90556285 | AF157: 4.274310352 | AG157: 15.54782793
A158: 113 | B158: 120.6058225 | C158: 272.7764208 | D158: 0 | E158: 30 | G158: 119.6058225 | H158: 124 | J158: 0 | K158: 1 | M158: 83.8242066 | N158: 31.44740161 | O158: 4.033814619 | P158: 1.300399635 | Q158: 2.557241602 | R158: 8.418313516 | S158: 1.91271836 | T158: 12.96235674 | U158: 20.32188562 | V158: 3.350175233 | X158: 191.9097962 | Y158: 71.1812607 | Z158: 7.992942697 | AA158: 1.692421159 | AB158: 4.589441894 | AC158: 18.09921266 | AD158: 3.103815819 | AE158: 28.57323229 | AF158: 45.53694635 | AG158: 6.417153912
A159: 114 | B159: 35.18152342 | C159: 75.87341149 | D159: 0 | E159: 0 | G159: 34.18152342 | H159: 74.87341149 | J159: 0 | K159: 0 | M159: 12.19810334 | N159: 6.631878545 | O159: 13.84524949 | P159: 2.506292048 | Q159: 9.520769002 | R159: 4.012864581 | S159: 4.058616278 | T159: 28.84034354 | U159: 6.946694348 | V159: 1.826578535 | X159: 26.8116282 | Y159: 13.98148005 | Z159: 30.60830007 | AA159: 4.472003172 | AB159: 20.64037255 | AC159: 7.944652858 | AD159: 8.05011052 | AE159: 65.17199186 | AF159: 14.70713047 | AG159: 2.905263524
A160: 115 | B160: 64.06226317 | C160: 142.4435166 | D160: 0 | E160: 17.44351662 | G160: 63.06226317 | H160: 124 | J160: 0 | K160: 1 | M160: 6.174097924 | N160: 33.45658193 | O160: 8.908015717 | P160: 15.5235676 | Q160: 14.7900453 | R160: 3.98699998 | S160: 12.60417546 | T160: 3.720613107 | U160: 9.070815604 | V160: 19.69808867 | X160: 12.92629571 | Y160: 75.81242136 | Z160: 19.22797623 | AA160: 34.47682332 | AB160: 32.78605441 | AC160: 7.885034955 | AD160: 27.74762443 | AE160: 7.271013212 | AF160: 19.60322997 | AG160: 44.09909439
A161: 116 | B161: 48.66575278 | C161: 106.9545602 | D161: 0 | E161: 0 | G161: 47.66575278 | H161: 105.9545602 | J161: 0 | K161: 0 | M161: 20.49112293 | N161: 12.76040641 | O161: 12.9339608 | P161: 2.480262643 | Q161: 2.290502401 | R161: 3.815119528 | S161: 3.293376341 | T161: 1.62515552 | U161: 12.61309909 | V161: 2.718488207 | X161: 45.92703835 | Y161: 28.10773677 | Z161: 28.50777965 | AA161: 4.412005392 | AB161: 3.974608034 | AC161: 7.488850512 | AD161: 6.286232466 | AE161: 2.440983473 | AF161: 27.76819339 | AG161: 4.961115318
A162: 117 | B162: 32.35850725 | C162: 69.36635921 | D162: 0 | E162: 0 | G162: 31.35850725 | H162: 68.36635921 | J162: 0 | K162: 0 | M162: 6.82231645 | N162: 16.88267428 | O162: 3.033712452 | P162: 5.619804065 | Q162: 3.650476504 | R162: 9.237964614 | S162: 4.262004092 | T162: 4.532413171 | U162: 5.970352835 | V162: 24.8150116 | X162: 14.42043942 | Y162: 37.60956422 | Z162: 5.687707202 | AA162: 11.64864837 | AB162: 7.109348342 | AC162: 19.98850844 | AD162: 8.518919431 | AE162: 9.142212359 | AF162: 12.45666328 | AG162: 55.89360174
A163: 118 | B163: 30.752895 | C163: 65.66542298 | D163: 0 | E163: 0 | G163: 29.752895 | H163: 64.66542298 | J163: 0 | K163: 0 | M163: 9.355710946 | N163: 16.54202818 | O163: 1.148483225 | P163: 3.706672649 | Q163: 3.072474763 | R163: 9.588710192 | S163: 4.580297521 | T163: 12.73357326 | U163: 14.61142104 | V163: 19.75550339 | X163: 20.25991373 | Y163: 36.82437496 | Z163: 1.342253833 | AA163: 7.238880457 | AB163: 5.777054329 | AC163: 20.79697699 | AD163: 9.252585786 | AE163: 28.04588636 | AF163: 32.37432549 | AG163: 44.23143532
A164: 119 | B164: 46.61166481 | C164: 102.2198874 | D164: 0 | E164: 0 | G164: 45.61166481 | H164: 101.2198874 | J164: 0 | K164: 0 | M164: 28.08877846 | N164: 10.14022643 | O164: 4.614751021 | P164: 3.767908899 | Q164: 24.27911527 | R164: 2.923555095 | S164: 3.741842146 | T164: 2.95993169 | U164: 4.53992773 | V164: 10.41095325 | X164: 63.43963435 | Y164: 22.06822193 | Z164: 9.332001103 | AA164: 7.380030011 | AB164: 54.6583607 | AC164: 5.433794494 | AD164: 7.319946146 | AE164: 5.517642545 | AF164: 9.159533419 | AG164: 22.69224724
A165: 120 | B165: 45.88758518 | C165: 100.5508838 | D165: 0 | E165: 0 | G165: 44.88758518 | H165: 99.55088384 | J165: 0 | K165: 0 | M165: 3.157173501 | N165: 29.20603959 | O165: 6.853874153 | P165: 6.670497938 | Q165: 7.123217637 | R165: 61.89299731 | S165: 4.240593921 | T165: 5.034987226 | U165: 7.265063198 | V165: 5.450713036 | X165: 5.97228492 | Y165: 66.01492125 | Z165: 14.49317992 | AA165: 14.07049775 | AB165: 15.11401665 | AC165: 141.3583588 | AD165: 8.469568989 | AE165: 10.30064556 | AF165: 15.44097067 | AG165: 11.25889355
A166: 121 | B166: 49.58878848 | C166: 109.0821574 | D166: 0 | E166: 0 | G166: 48.58878848 | H166: 108.0821574 | J166: 0 | K166: 0 | M166: 2.064759496 | N166: 6.539584651 | O166: 34.26460255 | P166: 6.719841787 | Q166: 3.864124037 | R166: 2.309242592 | S166: 2.10148201 | T166: 3.092388554 | U166: 1.411458286 | V166: 17.17375518 | X166: 3.454270638 | Y166: 13.76874262 | Z166: 77.67490887 | AA166: 14.18423532 | AB166: 7.601805905 | AC166: 4.017804175 | AD166: 3.538916033 | AE166: 5.822955616 | AF166: 1.94841135 | AG166: 38.28050569
A167: 122 | B167: 22.14549865 | C167: 45.82537439 | D167: 0 | E167: 0 | G167: 21.14549865 | H167: 44.82537439 | J167: 0 | K167: 0 | M167: 1.398350702 | N167: 2.531972306 | O167: 15.10014715 | P167: 3.115028493 | Q167: 25.72690216 | R167: 4.27279506 | S167: 1.069036439 | T167: 1.089654399 | U167: 5.67918269 | V167: 12.30160493 | X167: 1.918198367 | Y167: 4.531196166 | Z167: 33.50083918 | AA167: 5.875140676 | AB167: 57.99550948 | AC167: 8.543792613 | AD167: 1.159128991 | AE167: 1.206653391 | AF167: 11.7855161 | AG167: 27.05019935
A168: 123 | B168: 49.81030272 | C168: 109.5927478 | D168: 0 | E168: 0 | G168: 48.81030272 | H168: 108.5927478 | J168: 0 | K168: 0 | M168: 13.48326683 | N168: 9.200536335 | O168: 8.962132088 | P168: 18.16436747 | Q168: 9.343579415 | R168: 6.391280004 | S168: 19.39888654 | T168: 5.044496751 | U168: 6.944091457 | V168: 3.715295528 | X168: 29.77393003 | Y168: 19.90223625 | Z168: 19.35271446 | AA168: 40.56386702 | AB168: 20.23195055 | AC168: 13.42690041 | AD168: 43.40943347 | AE168: 10.32256501 | AF168: 14.70113081 | AG168: 7.258756192
A169: 124 | B169: 71.61363287 | C169: 159.8494238 | D169: 0 | E169: 30 | G169: 70.61363287 | H169: 124 | J169: 0 | K169: 1 | M169: 36.93421897 | N169: 2.652249496 | O169: 28.43804585 | P169: 3.589118553 | Q169: 4.064814872 | R169: 5.489264008 | S169: 3.283221291 | T169: 23.1941083 | U169: 20.48066869 | V169: 18.30521939 | X169: 83.82837473 | Y169: 4.808435089 | Z169: 64.24469569 | AA169: 6.967918265 | AB169: 8.06439828 | AC169: 11.34775354 | AD169: 6.262825075 | AE169: 52.15741963 | AF169: 45.90294133 | AG169: 40.88853068
A170: 125 | B170: 65.6604351 | C170: 146.1273029 | D170: 0 | E170: 21.12730291 | G170: 64.6604351 | H170: 124 | J170: 0 | K170: 1 | M170: 27.18582799 | N170: 10.66919986 | O170: 9.549139522 | P170: 18.25626773 | Q170: 2.265182564 | R170: 3.996509467 | S170: 1.830721008 | T170: 3.20454388 | U170: 5.087940459 | V170: 32.70969082 | X170: 61.35833351 | Y170: 23.28750568 | Z170: 20.7057666 | AA170: 40.77569711 | AB170: 3.916245811 | AC170: 7.906954321 | AD170: 2.914811922 | AE170: 6.081473644 | AF170: 10.42270276 | AG170: 74.09083734
A171: 126 | B171: 24.23640384 | C171: 50.64491085 | D171: 0 | E171: 0 | G171: 23.23640384 | H171: 49.64491085 | J171: 0 | K171: 0 | M171: 8.375141527 | N171: 2.909815014 | O171: 4.495376172 | P171: 8.456071126 | Q171: 2.671958086 | R171: 3.81236726 | S171: 4.979998036 | T171: 5.992175049 | U171: 4.050130288 | V171: 2.980970705 | X171: 17.99970122 | Y171: 5.402123608 | Z171: 9.056842077 | AA171: 18.18624394 | AB171: 4.853863388 | AC171: 7.482506535 | AD171: 10.17389547 | AE171: 12.50696349 | AF171: 8.030550313 | AG171: 5.566137475
A172: 127 | B172: 32.94850437 | C172: 70.72630256 | D172: 0 | E172: 0 | G172: 31.94850437 | H172: 69.72630256 | J172: 0 | K172: 0 | M172: 5.300373243 | N172: 2.329676714 | O172: 20.9332529 | P172: 4.385201509 | Q172: 52.85810357 | R172: 5.564353395 | S172: 9.845787778 | T172: 1.877111567 | U172: 4.985583235 | V172: 11.62723065 | X172: 10.91236033 | Y172: 4.064904826 | Z172: 46.94614793 | AA172: 8.802889478 | AB172: 120.5329287 | AC172: 11.52083458 | AD172: 21.38954083 | AE172: 3.021742161 | AF172: 10.18676936 | AG172: 25.49576666
A173: 128 | B173: 90.03759164 | C173: 202.3166487 | D173: 0 | E173: 30 | G173: 89.03759164 | H173: 124 | J173: 0 | K173: 1 | M173: 7.696410072 | N173: 7.79509533 | O173: 60.78386133 | P173: 13.76222491 | Q173: 4.719565365 | R173: 2.105339884 | S173: 22.16689824 | T173: 24.76317213 | U173: 8.231608482 | V173: 5.124774851 | X173: 16.43522522 | Y173: 16.66269473 | Z173: 138.8018004 | AA173: 30.41692842 | AB173: 9.573598166 | AC173: 3.547808432 | AD173: 49.78970043 | AE173: 55.77411176 | AF173: 17.66885755 | AG173: 10.50760603
A174: 129 | B174: =SUMPRODUCT(M174:V174,valid_event) -> 74.08534102 | C174: =SUMPRODUCT(X174:AG174,valid_event) -> 165.5467111 | D174: =MAX($B174-attachment,0)-MAX($B174-(attachment+coverage),0) -> 0 | E174: =MAX($C174-attachment,0)-MAX($C174-(attachment+coverage),0) -> 30 | G174: =MAX(B174-bkpt_1_x,0)-MAX(B174-attachment,0) -> 73.08534102 | H174: =MAX(C174-bkpt_1_x,0)-MAX(C174-attachment,0) -> 124 | J174: =IF(B174>attachment,1,0) -> 0 | K174: =IF(C174>attachment,1,0) -> 1 | M174: 31.83116932 | N174: 6.76189055 | O174: 24.76690183 | P174: 10.72537932 | Q174: 2.91117476 | R174: 8.964963877 | S174: 19.22707946 | T174: 10.6009052 | U174: 5.457288536 | V174: 7.90173942 | X174: =IF(M174>bkpt_2_x,slope3*(M174-bkpt_2_x)+bkpt_2_y,IF(M174>bkpt_1_x,slope2*(M174-bkpt_1_x)+bkpt_1_y,slope1*M174)) -> 72.06584529 | Y174: =IF(N174>bkpt_2_x,slope3*(N174-bkpt_2_x)+bkpt_2_y,IF(N174>bkpt_1_x,slope2*(N174-bkpt_1_x)+bkpt_1_y,slope1*N174)) -> 14.28115772 | Z174: =IF(O174>bkpt_2_x,slope3*(O174-bkpt_2_x)+bkpt_2_y,IF(O174>bkpt_1_x,slope2*(O174-bkpt_1_x)+bkpt_1_y,slope1*O174)) -> 55.78270873 | AA174: =IF(P174>bkpt_2_x,slope3*(P174-bkpt_2_x)+bkpt_2_y,IF(P174>bkpt_1_x,slope2*(P174-bkpt_1_x)+bkpt_1_y,slope1*P174)) -> 23.41699932 | AB174: =IF(Q174>bkpt_2_x,slope3*(Q174-bkpt_2_x)+bkpt_2_y,IF(Q174>bkpt_1_x,slope2*(Q174-bkpt_1_x)+bkpt_1_y,slope1*Q174)) -> 5.405257821 | AC174: =IF(R174>bkpt_2_x,slope3*(R174-bkpt_2_x)+bkpt_2_y,IF(R174>bkpt_1_x,slope2*(R174-bkpt_1_x)+bkpt_1_y,slope1*R174)) -> 19.35924174 | AD174: =IF(S174>bkpt_2_x,slope3*(S174-bkpt_2_x)+bkpt_2_y,IF(S174>bkpt_1_x,slope2*(S174-bkpt_1_x)+bkpt_1_y,slope1*S174)) -> 43.01341816 | AE174: =IF(T174>bkpt_2_x,slope3*(T174-bkpt_2_x)+bkpt_2_y,IF(T174>bkpt_1_x,slope2*(T174-bkpt_1_x)+bkpt_1_y,slope1*T174)) -> 23.13008648 | AF174: =IF(U174>bkpt_2_x,slope3*(U174-bkpt_2_x)+bkpt_2_y,IF(U174>bkpt_1_x,slope2*(U174-bkpt_1_x)+bkpt_1_y,slope1*U174)) -> 11.27405008 | AG174: =IF(V174>bkpt_2_x,slope3*(V174-bkpt_2_x)+bkpt_2_y,IF(V174>bkpt_1_x,slope2*(V174-bkpt_1_x)+bkpt_1_y,slope1*V174)) -> 16.90850936
A175: 130 | B175: 17.96819726 | C175: 37.10152603 | D175: 0 | E175: 0 | G175: 16.96819726 | H175: 36.10152603 | J175: 0 | K175: 0 | M175: 7.916424922 | N175: 8.727700536 | O175: 1.017429151 | P175: 0.3066426505 | Q175: 4.657157944 | R175: 4.066448772 | S175: 6.835084446 | T175: 21.39228529 | U175: 6.198875141 | V175: 16.52292119 | X175: 16.94235945 | Y175: 18.81234974 | Z175: 1.040174193 | AA175: 0.3066426505 | AB175: 9.429749062 | AC175: 8.068164419 | AD175: 14.44986965 | AE175: 48.00421759 | AF175: 12.9834072 | AG175: 36.78033334
A176: =A175+1 -> 131 | B176: 49.27194571 | C176: 108.3518349 | D176: 0 | E176: 0 | G176: 48.27194571 | H176: 107.3518349 | J176: 0 | K176: 0 | M176: 10.20067265 | N176: 16.81396079 | O176: 11.35118899 | P176: 10.90612327 | Q176: 4.318614003 | R176: 9.837097754 | S176: 20.67760351 | T176: 9.462532967 | U176: 2.078011791 | V176: 2.226340178 | X176: 22.20755047 | Y176: 37.45117962 | Z176: 24.85949063 | AA176: 23.83361413 | AB176: 8.649405276 | AC176: 21.36951032 | AD176: 46.3568761 | AE176: 20.50613849 | AF176: 3.484817178 | AG176: 3.82671411
A177: 132 | B177: 25.32588615 | C177: 53.15616758 | D177: 0 | E177: 0 | G177: 24.32588615 | H177: 52.15616758 | J177: 0 | K177: 0 | M177: 3.430930911 | N177: 12.50839794 | O177: 5.276202415 | P177: 4.110354886 | Q177: 17.17208374 | R177: 2.666691627 | S177: 16.50461255 | T177: 4.392696848 | U177: 2.189293634 | V177: 9.885541756 | X177: 6.60329575 | Y177: 27.52685725 | Z177: 10.85664657 | AA177: 8.169368013 | AB177: 38.27665302 | AC177: 4.8417242 | AD177: 36.73813192 | AE177: 8.820166234 | AF177: 3.741321827 | AG177: 21.48117375
A178: 133 | B178: 22.77908381 | C178: 47.28578818 | D178: 0 | E178: 0 | G178: 21.77908381 | H178: 46.28578818 | J178: 0 | K178: 0 | M178: 2.590653569 | N178: 1.223834087 | O178: 16.90471222 | P178: 2.059883928 | Q178: 3.25310281 | R178: 1.898040301 | S178: 8.321904817 | T178: 29.99064066 | U178: 7.369513968 | V178: 1.307421196 | X178: 4.666456478 | Y178: 1.515937571 | Z178: 37.66036168 | AA178: 3.443032454 | AB178: 6.193401978 | AC178: 3.069982894 | AD178: 17.8769906 | AE178: 67.82342672 | AF178: 15.6817297 | AG178: 1.708605857
A179: 134 | B179: 16.36595894 | C179: 32.50353536 | D179: 0 | E179: 0 | G179: 15.36595894 | H179: 31.50353536 | J179: 0 | K179: 0 | M179: 2.016624674 | N179: 3.933747741 | O179: 8.269434216 | P179: 2.146152308 | Q179: 6.919862063 | R179: 4.796555351 | S179: 5.339476031 | T179: 7.84516376 | U179: 5.346190672 | V179: 8.193738371 | X179: 3.343319875 | Y179: 7.762288542 | Z179: 17.75604587 | AA179: 3.641881071 | AB179: 14.64528205 | AC179: 9.751060084 | AD179: 11.00249225 | AE179: 16.77810247 | AF179: 11.0179695 | AG179: 17.58156695
A180: 135 | B180: 19.86292351 | C180: 40.5640387 | D180: 0 | E180: 0 | G180: 18.86292351 | H180: 39.5640387 | J180: 0 | K180: 0 | M180: 3.407205631 | N180: 6.857560601 | O180: 5.506271296 | P180: 4.091885984 | Q180: 8.339329535 | R180: 4.331076238 | S180: 7.471926658 | T180: 1.876990475 | U180: 17.10527549 | V180: 4.451927983 | X180: 6.54860898 | Y180: 14.50167719 | Z180: 11.38695534 | AA180: 8.126797193 | AB180: 17.91715458 | AC180: 8.678130728 | AD180: 15.91779095 | AE180: 3.021463045 | AF180: 38.12266 | AG180: 8.956694001
A181: 136 | B181: 34.11008707 | C181: 73.40375069 | D181: 0 | E181: 0 | G181: 33.11008707 | H181: 72.40375069 | J181: 0 | K181: 0 | M181: 7.05184835 | N181: 10.4179732 | O181: 4.837284294 | P181: 11.80298122 | Q181: 8.589597327 | R181: 40.35024623 | S181: 1.278222765 | T181: 9.497767635 | U181: 7.226581729 | V181: 32.15653807 | X181: 14.94951045 | Y181: 22.70842822 | Z181: 9.844940298 | AA181: 25.90087172 | AB181: 18.49402184 | AC181: 91.70231756 | AD181: 1.641303474 | AE181: 20.5873544 | AF181: 15.35227088 | AG181: 72.81582025
A182: 137 | B182: 51.83222629 | C182: 114.2532816 | D182: 0 | E182: 0 | G182: 50.83222629 | H182: 113.2532816 | J182: 0 | K182: 0 | M182: 2.620753532 | N182: 20.98286445 | O182: 25.92928669 | P182: 2.299321626 | Q182: 7.811716066 | R182: 18.74086954 | S182: 4.737496678 | T182: 14.90861613 | U182: 8.493226083 | V182: 5.901638007 | X182: 4.735836891 | Y182: 47.06050255 | Z182: 58.46200582 | AA182: 3.994936347 | AB182: 16.70100553 | AC182: 41.8927043 | AD182: 9.614929844 | AE182: 33.05936019 | AF182: 18.27188612 | AG182: 12.29827561
A183: 138 | B183: 39.47954538 | C183: 85.7803521 | D183: 0 | E183: 0 | G183: 38.47954538 | H183: 84.7803521 | J183: 0 | K183: 0 | M183: 6.658665581 | N183: 5.109680277 | O183: 6.708889359 | P183: 21.00231016 | Q183: 9.725503653 | R183: 3.96429013 | S183: 13.51836461 | T183: 13.4514897 | U183: 3.198791119 | V183: 5.82889715 | X183: 14.04322416 | Y183: 10.47281304 | Z183: 14.15898997 | AA183: 47.10532493 | AB183: 21.11228592 | AC183: 7.832688749 | AD183: 29.85483043 | AE183: 29.70068377 | AF183: 6.068213529 | AG183: 12.13060793
A184: 139 | B184: 133.9231034 | C184: 303.4727533 | D184: 8.923103392 | E184: 30 | G184: 124 | H184: 124 | J184: 1 | K184: 1 | M184: 94.47272742 | N184: 22.15765153 | O184: 5.380969212 | P184: 11.91175523 | Q184: 1.211064367 | R184: 2.207750567 | S184: 3.572183163 | T184: 10.54655747 | U184: 6.732269493 | V184: 24.75689929 | X184: 216.4546367 | Y184: 49.76838679 | Z184: 11.09813403 | AA184: 26.1515958 | AB184: 1.486503366 | AC184: 3.783865058 | AD184: 6.92888219 | AE184: 23.00481497 | AF184: 14.21288118 | AG184: 55.75965287
A185: 140 | B185: 21.27054633 | C185: 43.8086093 | D185: 0 | E185: 0 | G185: 20.27054633 | H185: 42.8086093 | J185: 0 | K185: 0 | M185: 6.454200235 | N185: 5.476630747 | O185: 6.136366669 | P185: 3.203348683 | Q185: 15.57993874 | R185: 0.9952598888 | S185: 4.381534657 | T185: 12.59108845 | U185: 10.03719137 | V185: 17.62288854 | X185: 13.57193154 | Y185: 11.31863387 | Z185: 12.83932517 | AA185: 6.078718715 | AB185: 34.60675879 | AC185: 0.9952598888 | AD185: 8.794437383 | AE185: 27.71745888 | AF185: 21.83072611 | AG185: 39.31575809
A186: 141 | B186: 25.25111904 | C186: 52.98382939 | D186: 0 | E186: 0 | G186: 24.25111904 | H186: 51.98382939 | J186: 0 | K186: 0 | M186: 1.664108742 | N186: 2.724780129 | O186: 11.93163183 | P186: 8.93059834 | Q186: 6.31866871 | R186: 17.22570727 | S186: 4.300171077 | T186: 25.02052284 | U186: 3.88773202 | V186: 3.652986556 | X186: 2.53077065 | Y186: 4.975618197 | Z186: 26.19741136 | AA186: 19.28002917 | AB186: 13.25953138 | AC186: 38.40025526 | AD186: 8.606894332 | AE186: 56.36730514 | AF186: 7.656222306 | AG186: 7.115134011
A187: 142 | B187: 38.45820838 | C187: 83.42617031 | D187: 0 | E187: 0 | G187: 37.45820838 | H187: 82.42617031 | J187: 0 | K187: 0 | M187: 2.96068555 | N187: 2.871980762 | O187: 2.600311674 | P187: 30.02523039 | Q187: 14.20182224 | R187: 3.68639082 | S187: 3.245784409 | T187: 35.8856107 | U187: 2.771048189 | V187: 6.616163182 | X187: 5.519380192 | Y187: 5.314915655 | Z187: 4.688718408 | AA187: 67.90315605 | AB187: 31.43020026 | AC187: 7.192130839 | AD187: 6.176533063 | AE187: 81.41133267 | AF187: 5.082266075 | AG187: 13.94525613
A188: 143 | B188: 79.86923784 | C188: 178.8785932 | D188: 0 | E188: 30 | G188: 78.86923784 | H188: 124 | J188: 0 | K188: 1 | M188: 13.78957057 | N188: 11.73802035 | O188: 45.41897676 | P188: 8.922670153 | Q188: 6.814975578 | R188: 10.91676771 | S188: 3.807586018 | T188: 8.096052884 | U188: 5.45077719 | V188: 25.57627456 | X188: 30.47996017 | Y188: 25.75113691 | Z188: 103.3857414 | AA188: 19.2617547 | AB188: 14.40351871 | AC188: 23.85814957 | AD188: 7.471485772 | AE188: 17.3564019 | AF188: 11.25904142 | AG188: 57.64831287
A189: 144 | B189: 26.76959796 | C189: 56.4839233 | D189: 0 | E189: 0 | G189: 25.76959796 | H189: 55.4839233 | J189: 0 | K189: 0 | M189: 4.132246039 | N189: 5.404527939 | O189: 8.369471816 | P189: 8.863352164 | Q189: 3.490341967 | R189: 7.841357255 | S189: 15.4581474 | T189: 9.582314278 | U189: 5.384268502 | V189: 5.540781208 | X189: 8.219827121 | Y189: 11.1524369 | Z189: 17.98663254 | AA189: 19.12502674 | AB189: 6.740238235 | AC189: 16.76932847 | AD189: 34.32602975 | AE189: 20.78223441 | AF189: 11.1057389 | AG189: 11.46650068
A190: 145 | B190: 65.07792812 | C190: 144.7846243 | D190: 0 | E190: 19.78462431 | G190: 64.07792812 | H190: 124 | J190: 0 | K190: 1 | M190: 4.774675754 | N190: 5.905070552 | O190: 43.47716402 | P190: 10.92101779 | Q190: 29.5592753 | R190: 49.12030665 | S190: 8.889584868 | T190: 1.253394731 | U190: 1.934015718 | V190: 4.233645421 | X190: 9.700627612 | Y190: 12.30618762 | Z190: 98.90986306 | AA190: 23.86794601 | AB190: 66.82912956 | AC190: 111.9173068 | AD190: 19.18549312 | AE190: 1.584074854 | AF190: 3.152906229 | AG190: 8.453552696
A191: 146 | B191: 34.97413172 | C191: 75.3953736 | D191: 0 | E191: 0 | G191: 33.97413172 | H191: 74.3953736 | J191: 0 | K191: 0 | M191: 7.234401282 | N191: 10.80106936 | O191: 12.3796607 | P191: 4.559000368 | Q191: 46.89638342 | R191: 25.26802574 | S191: 1.542726928 | T191: 1.033398606 | U191: 3.680857407 | V191: 23.6764831 | X191: 15.37029496 | Y191: 23.59146488 | Z191: 27.23011792 | AA191: 9.203495848 | AB191: 106.7911638 | AC191: 56.93779933 | AD191: 2.250985569 | AE191: 1.076983787 | AF191: 7.179376323 | AG191: 53.26929356
A192: 147 | B192: 24.12196176 | C192: 50.38112186 | D192: 0 | E192: 0 | G192: 23.12196176 | H192: 49.38112186 | J192: 0 | K192: 0 | M192: 6.59839767 | N192: 3.542097509 | O192: 3.282951896 | P192: 10.69851469 | Q192: 1.976573365 | R192: 46.76438911 | S192: 13.09275048 | T192: 4.498115808 | U192: 6.981927313 | V192: 0.9573951319 | X192: 13.90430663 | Y192: 6.859534757 | Z192: 6.262204121 | AA192: 23.35507635 | AB192: 3.251001606 | AC192: 106.4869169 | AD192: 28.87378985 | AE192: 9.063156937 | AF192: 14.78834246 | AG192: 0.9573951319
A193: 148 | B193: 19.22831793 | C193: 39.10127283 | D193: 0 | E193: 0 | G193: 18.22831793 | H193: 38.10127283 | J193: 0 | K193: 0 | M193: 4.195416483 | N193: 1.751233109 | O193: 4.794371461 | P193: 8.48729688 | Q193: 26.33782382 | R193: 4.734980146 | S193: 15.76322588 | T193: 12.95401537 | U193: 15.76925945 | V193: 1.521028782 | X193: 8.365434994 | Y193: 2.731592315 | Z193: 9.746026217 | AA193: 18.25821931 | AB193: 59.4036839 | AC193: 9.609129237 | AD193: 35.02923565 | AE193: 28.55400542 | AF193: 35.04314304 | AG193: 2.200971343
A194: 149 | B194: 21.57511192 | C194: 44.51063297 | D194: 0 | E194: 0 | G194: 20.57511192 | H194: 43.51063297 | J194: 0 | K194: 0 | M194: 6.436436346 | N194: 2.352993511 | O194: 8.38239127 | P194: 4.403290791 | Q194: 28.07413966 | R194: 10.553503 | S194: 21.98925151 | T194: 21.49846329 | U194: 2.986310134 | V194: 0.6761981158 | X194: 13.53098578 | Y194: 4.118650044 | Z194: 18.01641188 | AA194: 8.844585274 | AB194: 63.40589192 | AC194: 23.02082441 | AD194: 49.38022474 | AE194: 48.24895788 | AF194: 5.57844486 | AG194: 0.6761981158
A195: 150 | B195: 42.94811732 | C195: 93.77541043 | D195: 0 | E195: 0 | G195: 41.94811732 | H195: 92.77541043 | J195: 0 | K195: 0 | M195: 5.180189809 | N195: 9.386532476 | O195: 24.08054548 | P195: 4.30084956 | Q195: 3.941954645 | R195: 9.019997301 | S195: 12.7852797 | T195: 3.312634735 | U195: 0.9929879602 | V195: 4.835603071 | X195: 10.63533751 | Y195: 20.33095736 | Z195: 54.20065733 | AA195: 8.608458237 | AB195: 7.781205456 | AC195: 19.48609378 | AD195: 28.16506971 | AE195: 6.330623064 | AF195: 0.9929879602 | AG195: 9.841065079
A196: 151 | B196: 62.86463864 | C196: 139.6829921 | D196: 0 | E196: 14.68299206 | G196: 61.86463864 | H196: 124 | J196: 0 | K196: 1 | M196: 40.46001376 | N196: 7.501312827 | O196: 3.934782787 | P196: 10.96852926 | Q196: 1.134505346 | R196: 10.90715073 | S196: 2.155551247 | T196: 9.712113454 | U196: 6.370868833 | V196: 12.57114655 | X196: 91.95533171 | Y196: 15.98552607 | Z196: 7.764674324 | AA196: 23.97745996 | AB196: 1.310034823 | AC196: 23.83598244 | AD196: 3.663545624 | AE196: 21.08142151 | AF196: 13.37985266 | AG196: 27.67149279
A197: 152 | B197: 26.04380361 | C197: 54.81096731 | D197: 0 | E197: 0 | G197: 25.04380361 | H197: 53.81096731 | J197: 0 | K197: 0 | M197: 10.55457072 | N197: 5.226574878 | O197: 4.686419207 | P197: 5.576238804 | Q197: 1.105282058 | R197: 35.66259539 | S197: 23.82385614 | T197: 15.45646624 | U197: 1.667202833 | V197: 2.52107543 | X197: 23.0232855 | Y197: 10.74225509 | Z197: 9.497196273 | AA197: 11.54823044 | AB197: 1.242675144 | AC197: 80.89728238 | AD197: 53.60898841 | AE197: 34.32215468 | AF197: 2.53790253 | AG197: 4.506078865
A198: 153 | B198: 44.95620983 | C198: 98.40406367 | D198: 0 | E198: 0 | G198: 43.95620983 | H198: 97.40406367 | J198: 0 | K198: 0 | M198: 5.374634903 | N198: 20.10411061 | O198: 16.08127774 | P198: 3.396186577 | Q198: 1.395859031 | R198: 10.35827153 | S198: 5.391197513 | T198: 11.12115314 | U198: 1.570073327 | V198: 4.193282108 | X198: 11.08353345 | Y198: 45.03497496 | Z198: 35.7623452 | AA198: 6.52321006 | AB198: 1.912455067 | AC198: 22.57081587 | AD198: 11.12171027 | AE198: 24.32925799 | AF198: 2.31401902 | AG198: 8.360515258
A199: 154 | B199: 40.59705454 | C199: 88.3562107 | D199: 0 | E199: 0 | G199: 39.59705454 | H199: 87.3562107 | J199: 0 | K199: 0 | M199: 2.143541448 | N199: 12.90332392 | O199: 20.195689 | P199: 5.354500162 | Q199: 13.95660913 | R199: 7.632363917 | S199: 3.595290365 | T199: 3.933719355 | U199: 14.968618 | V199: 27.78484373 | X199: 3.635863038 | Y199: 28.43716164 | Z199: 45.24606315 | AA199: 11.03712287 | AB199: 30.86498404 | AC199: 16.28759883 | AD199: 6.98214429 | AE199: 7.762223113 | AF199: 33.19766449 | AG199: 62.73906481
A200: 155 | B200: 67.43398219 | C200: 150.2153289 | D200: 0 | E200: 25.21532895 | G200: 66.43398219 | H200: 124 | J200: 0 | K200: 1 | M200: 14.42489166 | N200: 2.205793783 | O200: 38.38967081 | P200: 12.41362594 | Q200: 15.6698925 | R200: 8.972858971 | S200: 28.85467726 | T200: 18.28313408 | U200: 16.17913884 | V200: 5.418586106 | X200: 31.94437528 | Y200: 3.779354669 | Z200: 87.18319121 | AA200: 27.30840779 | AB200: 34.8141022 | AC200: 19.37743993 | AD200: 65.20503108 | AE200: 40.83762406 | AF200: 35.98791504 | AG200: 11.18484097
A201: 156 | B201: 50.5338402 | C201: 111.2605017 | D201: 0 | E201: 0 | G201: 49.5338402 | H201: 110.2605017 | J201: 0 | K201: 0 | M201: 27.47530975 | N201: 2.540301655 | O201: 11.50300741 | P201: 9.015221378 | Q201: 21.63122661 | R201: 7.477495041 | S201: 18.67311248 | T201: 5.839959724 | U201: 2.206657792 | V201: 1.104515619 | X201: 62.02558898 | Y201: 4.550395315 | Z201: 25.20943209 | AA201: 19.47508528 | AB201: 48.55497733 | AC201: 15.93062607 | AD201: 41.73652427 | AE201: 12.15610716 | AF201: 3.78134621 | AG201: 1.240908502
A202: 157 | B202: 30.76964834 | C202: 65.70403942 | D202: 0 | E202: 0 | G202: 29.76964834 | H202: 64.70403942 | J202: 0 | K202: 0 | M202: 20.77531013 | N202: 4.145941194 | O202: 2.046163646 | P202: 3.802233369 | Q202: 4.044269793 | R202: 9.814939583 | S202: 12.68470102 | T202: 18.07531715 | U202: 8.471104247 | V202: 43.99215958 | X202: 46.58208985 | Y202: 8.251394451 | Z202: 3.411407204 | AA202: 7.459147916 | AB202: 8.017041874 | AC202: 21.31843574 | AD202: 27.93323585 | AE202: 40.35860603 | AF202: 18.22089529 | AG202: 100.0969278
A203: 158 | B203: 55.99194584 | C203: 123.8414352 | D203: 0 | E203: 0 | G203: 54.99194584 | H203: 122.8414352 | J203: 0 | K203: 0 | M203: 33.61331094 | N203: 13.91676356 | O203: 5.573668741 | P203: 2.888202597 | Q203: 3.411771507 | R203: 10.4127924 | S203: 1.473440981 | T203: 1.626518291 | U203: 13.57034459 | V203: 22.2423037 | X203: 76.17368172 | Y203: 30.77314 | Z203: 11.54230645 | AA203: 5.352306985 | AB203: 6.559133323 | AC203: 22.69648648 | AD203: 2.091281462 | AE203: 2.44412466 | AF203: 29.97464427 | AG203: 49.96351003
A204: 159 | B204: 39.82931052 | C204: 86.58656075 | D204: 0 | E204: 0 | G204: 38.82931052 | H204: 85.58656075 | J204: 0 | K204: 0 | M204: 7.806023366 | N204: 1.276156118 | O204: 22.63468732 | P204: 8.112443717 | Q204: 5.71411232 | R204: 14.8822256 | S204: 9.345958933 | T204: 6.206449528 | U204: 6.200350116 | V204: 30.18288051 | X204: 16.68788386 | Y204: 1.636539852 | Z204: 50.86795427 | AA204: 17.39418277 | AB204: 11.8660289 | AC204: 32.99853001 | AD204: 20.23743534 | AE204: 13.00086616 | AF204: 12.98680702 | AG204: 68.26653958
A205: 160 | B205: 40.56379111 | C205: 88.27953851 | D205: 0 | E205: 0 | G205: 39.56379111 | H205: 87.27953851 | J205: 0 | K205: 0 | M205: 2.691681642 | N205: 16.85799476 | O205: 19.24346079 | P205: 1.77065392 | Q205: 2.286264492 | R205: 20.44095047 | S205: 18.9262056 | T205: 15.22439737 | U205: 17.64241434 | V205: 21.51291609 | X205: 4.899326186 | Y205: 37.55267793 | Z205: 43.05117711 | AA205: 2.776357286 | AB205: 3.964839654 | AC205: 45.81139082 | AD205: 42.31990391 | AE205: 33.78723593 | AF205: 39.36076505 | AG205: 48.28227158
A206: 161 | B206: 57.36806145 | C206: 127.0133816 | D206: 0 | E206: 2.013381636 | G206: 56.36806145 | H206: 124 | J206: 0 | K206: 1 | M206: 13.52810989 | N206: 3.107807157 | O206: 24.76144929 | P206: 15.97069511 | Q206: 9.904262881 | R206: 4.402285216 | S206: 61.3473377 | T206: 7.376544741 | U206: 19.90566097 | V206: 1.379789216 | X206: 29.87729329 | Y206: 5.858495496 | Z206: 55.77014062 | AA206: 35.50745223 | AB206: 21.52432594 | AC206: 8.842267423 | AD206: 140.1006134 | AE206: 15.69793563 | AF206: 44.57754855 | AG206: 1.875414142
A207: 162 | B207: 43.44884509 | C207: 94.92958793 | D207: 0 | E207: 0 | G207: 42.44884509 | H207: 93.92958793 | J207: 0 | K207: 0 | M207: 18.39159093 | N207: 4.90664565 | O207: 11.51770421 | P207: 8.632904291 | Q207: 8.740825077 | R207: 6.720184679 | S207: 33.63362941 | T207: 10.21805102 | U207: 3.317407301 | V207: 13.43342643 | X207: 41.0876171 | Y207: 10.00481822 | Z207: 25.24330821 | AA207: 18.59384439 | AB207: 18.8426018 | AC207: 14.18502568 | AD207: 76.22051579 | AE207: 22.2476076 | AF207: 6.341623829 | AG207: 29.65904793
A208: 163 | B208: 18.48333023 | C208: 37.38407619 | D208: 0 | E208: 0 | G208: 17.48333023 | H208: 36.38407619 | J208: 0 | K208: 0 | M208: 4.733327874 | N208: 2.502608723 | O208: 7.658854299 | P208: 3.588539337 | Q208: 7.015471363 | R208: 2.141609776 | S208: 9.197471364 | T208: 3.354805174 | U208: 5.086732003 | V208: 6.817712299 | X208: 9.605320749 | Y208: 4.463513106 | Z208: 16.34865916 | AA208: 6.966583171 | AB208: 14.86566149 | AC208: 3.631410534 | AD208: 19.89517149 | AE208: 6.427825926 | AF208: 10.41991727 | AG208: 14.40982685
A209: 164 | B209: 163.3938873 | C209: 371.4029102 | D209: 30 | E209: 30 | G209: 124 | H209: 124 | J209: 1 | K209: 1 | M209: 70.91880487 | N209: 14.227238 | O209: 76.0112335 | P209: 2.236610927 | Q209: 12.46937982 | R209: 9.821720253 | S209: 14.1712834 | T209: 9.065119152 | U209: 4.092781016 | V209: 5.171823843 | X209: 162.1628452 | Y209: 31.48878359 | Z209: 173.9008932 | AA209: 3.850388188 | AB209: 27.43692048 | AC209: 21.33406518 | AD209: 31.35980823 | AE209: 19.59009964 | AF209: 8.128860242 | AG209: 10.61605396
A210: 165 | B210: 67.98440829 | C210: 151.4840611 | D210: 0 | E210: 26.48406111 | G210: 66.98440829 | H210: 124 | J210: 0 | K210: 1 | M210: 6.144813321 | N210: 19.23608814 | O210: 4.653568336 | P210: 37.9499385 | Q210: 5.46391581 | R210: 11.64771562 | S210: 7.100201654 | T210: 11.74523928 | U210: 51.43247643 | V210: 4.797766937 | X210: 12.8587947 | Y210: 43.03418315 | Z210: 9.421475014 | AA210: 86.16960824 | AB210: 11.28932594 | AC210: 25.54298449 | AD210: 15.06096481 | AE210: 25.76777655 | AF210: 117.2468582 | AG210: 9.75385279
A211: 166 | B211: 19.81046908 | C211: 40.44313122 | D211: 0 | E211: 0 | G211: 18.81046908 | H211: 39.44313122 | J211: 0 | K211: 0 | M211: 4.360370764 | N211: 4.806346367 | O211: 4.091948943 | P211: 6.551803005 | Q211: 5.983986233 | R211: 15.31472775 | S211: 5.275198621 | T211: 11.41840342 | U211: 1.4630836 | V211: 21.33337661 | X211: 8.74565461 | Y211: 9.773628376 | Z211: 8.126942313 | AA211: 13.79690593 | AB211: 12.48808827 | AC211: 33.99544747 | AD211: 10.85433282 | AE211: 25.01441989 | AF211: 2.067407698 | AG211: 47.8684331
A212: 167 | B212: 24.3252619 | C212: 50.84972869 | D212: 0 | E212: 0 | G212: 23.3252619 | H212: 49.84972869 | J212: 0 | K212: 0 | M212: 4.464690534 | N212: 5.530573382 | O212: 4.88350066 | P212: 9.446497327 | Q212: 11.5613002 | R212: 2.067944211 | S212: 9.806029272 | T212: 6.029336704 | U212: 3.765605687 | V212: 0.8931181078 | X212: 8.986111682 | Y212: 11.44297165 | Z212: 9.951469022 | AA212: 20.46917634 | AB212: 25.34379696 | AC212: 3.461611407 | AD212: 21.29789747 | AE212: 12.5926211 | AF212: 7.374721108 | AG212: 0.8931181078
A213: 168 | B213: 21.62426616 | C213: 44.62393349 | D213: 0 | E213: 0 | G213: 20.62426616 | H213: 43.62393349 | J213: 0 | K213: 0 | M213: 4.488747872 | N213: 3.033149014 | O213: 7.871824986 | P213: 6.230544285 | Q213: 10.22110105 | R213: 1.900803313 | S213: 0.7229770912 | T213: 7.410329436 | U213: 15.43030715 | V213: 7.000694263 | X213: 9.041563846 | Y213: 5.686408478 | Z213: 16.83955659 | AA213: 13.05640458 | AB213: 22.25463793 | AC213: 3.076351636 | AD213: 0.7229770912 | AE213: 15.77580935 | AF213: 34.26185798 | AG213: 14.83160028
A214: 169 | B214: 119.1537699 | C214: 278.9645524 | D214: 0 | E214: 30 | G214: 118.1537699 | H214: 124 | J214: 0 | K214: 1 | M214: 4.227415557 | N214: 4.066565251 | O214: 8.828881164 | P214: 102.0309079 | Q214: 2.440258093 | R214: 3.532315667 | S214: 8.817745173 | T214: 7.148557022 | U214: 6.336321423 | V214: 4.602485147 | X214: 8.439192858 | Y214: 8.068432903 | Z214: 19.04557108 | AA214: 243.4113555 | AB214: 4.319794904 | AC214: 6.836987613 | AD214: 19.01990262 | AE214: 15.17242394 | AF214: 13.30022088 | AG214: 9.303728265
A215: 170 | B215: 18.71569287 | C215: 38.42643897 | D215: 0 | E215: 0 | G215: 17.71569287 | H215: 37.42643897 | J215: 0 | K215: 0 | M215: 4.650552599 | N215: 10.29289297 | O215: 0.6116728765 | P215: 3.160574425 | Q215: 5.132347516 | R215: 6.101010658 | S215: 7.162625605 | T215: 5.695221213 | U215: 7.152133505 | V215: 11.28059086 | X215: 9.414523742 | Y215: 22.4201183 | Z215: 0.6116728765 | AA215: 5.980124049 | AB215: 10.52506102 | AC215: 12.75782957 | AD215: 15.20485202 | AE215: 11.8224849 | AF215: 15.18066773 | AG215: 24.69676193
A216: 171 | B216: 80.06626162 | C216: 179.332733 | D216: 0 | E216: 30 | G216: 79.06626162 | H216: 124 | J216: 0 | K216: 1 | M216: 58.61333636 | N216: 3.896474326 | O216: 15.00264099 | P216: 2.55380994 | Q216: 3.424394903 | R216: 13.77690084 | S216: 3.685505115 | T216: 3.635565634 | U216: 11.6235388 | V216: 1.011570044 | X216: 133.7987403 | Y216: 7.676373321 | Z216: 33.27608748 | AA216: 4.581531911 | AB216: 6.588230252 | AC216: 30.45075644 | AD216: 7.190089289 | AE216: 7.074978786 | AF216: 25.48725694 | AG216: 1.02666895
A217: 172 | B217: 20.47507645 | C217: 41.97505121 | D217: 0 | E217: 0 | G217: 19.47507645 | H217: 40.97505121 | J217: 0 | K217: 0 | M217: 2.211740759 | N217: 8.698731004 | O217: 8.304467231 | P217: 1.260137451 | Q217: 16.90276409 | R217: 3.141781986 | S217: 11.0907452 | T217: 1.510488721 | U217: 11.1938715 | V217: 6.88222909 | X217: 3.79306245 | Y217: 18.74557496 | Z217: 17.83679697 | AA217: 1.599616824 | AB217: 37.65587122 | AC217: 5.936807478 | AD217: 24.25916769 | AE217: 2.176676502 | AF217: 24.49687381 | AG217: 14.55853805
A218: 173 | B218: 19.84010643 | C218: 40.51144531 | D218: 0 | E218: 0 | G218: 18.84010643 | H218: 39.51144531 | J218: 0 | K218: 0 | M218: 3.619443138 | N218: 3.719023344 | O218: 8.515508154 | P218: 3.98613179 | Q218: 4.85081769 | R218: 98.25322421 | S218: 17.7340775 | T218: 4.857903366 | U218: 21.68016193 | V218: 16.75287914 | X218: 7.037816433 | Y218: 7.267348808 | Z218: 18.32324629 | AA218: 7.883033777 | AB218: 9.876134776 | AC218: 225.1686818 | AD218: 39.57204863 | AE218: 9.892467259 | AF218: 48.66777324 | AG218: 37.31038641
A219: 174 | B219: 26.28937074 | C219: 55.37699957 | D219: 0 | E219: 0 | G219: 25.28937074 | H219: 54.37699957 | J219: 0 | K219: 0 | M219: 8.338615514 | N219: 3.763698073 | O219: 6.127024059 | P219: 8.060033099 | Q219: 8.048018434 | R219: 5.679474681 | S219: 4.489581357 | T219: 5.897753296 | U219: 20.20896838 | V219: 14.57269875 | X219: 17.91550876 | Y219: 7.370324058 | Z219: 12.81779046 | AA219: 17.27337629 | AB219: 17.24568249 | AC219: 11.78618914 | AD219: 9.043485027 | AE219: 12.28932135 | AF219: 45.27667212 | AG219: 32.28507062
A220: 175 | B220: 41.68392652 | C220: 90.86145063 | D220: 0 | E220: 0 | G220: 40.68392652 | H220: 89.86145063 | J220: 0 | K220: 0 | M220: 13.72180807 | N220: 7.112972478 | O220: 9.996987255 | P220: 10.85215871 | Q220: 4.912560557 | R220: 2.252687639 | S220: 1.805407141 | T220: 2.726922026 | U220: 3.809098313 | V220: 3.969739417 | X220: 30.32376761 | Y220: 15.09040156 | Z220: 21.73805562 | AA220: 23.70922583 | AB220: 10.01845209 | AC220: 3.887445008 | AD220: 2.85646346 | AE220: 4.98055527 | AF220: 7.47497161 | AG220: 7.845249356
A221: 176 | B221: 48.80606722 | C221: 107.2779849 | D221: 0 | E221: 0 | G221: 47.80606722 | H221: 106.2779849 | J221: 0 | K221: 0 | M221: 8.285429198 | N221: 9.141790994 | O221: 19.77838813 | P221: 11.6004589 | Q221: 3.976092905 | R221: 7.236715606 | S221: 9.152851583 | T221: 23.63655296 | U221: 87.74134899 | V221: 8.111018292 | X221: 17.7929143 | Y221: 19.76682824 | Z221: 44.28418463 | AA221: 25.43405777 | AB221: 7.859894145 | AC221: 15.37562947 | AD221: 19.7923229 | AE221: 53.17725458 | AF221: 200.9388094 | AG221: 17.39089716
A222: 177 | B222: 68.48520781 | C222: 152.707683 | D222: 0 | E222: 27.70768305 | G222: 67.48520781 | H222: 124 | J222: 0 | K222: 1 | M222: 0.946912612 | N222: 4.648820137 | O222: 47.34880763 | P222: 15.54066744 | Q222: 1.765720831 | R222: 48.03425761 | S222: 110.557747 | T222: 9.617356042 | U222: 11.98742139 | V222: 8.66774025 | X222: 0.946912612 | Y222: 9.410530417 | Z222: 107.8340016 | AA222: 34.51623844 | AB222: 2.764986516 | AC222: 109.4139638 | AD222: 303.099229 | AE222: 20.86300568 | AF222: 26.3260063 | AG222: 18.67414128
A223: 178 | B223: 43.02725793 | C223: 93.95782953 | D223: 0 | E223: 0 | G223: 42.02725793 | H223: 92.95782953 | J223: 0 | K223: 0 | M223: 12.47851464 | N223: 6.739372569 | O223: 3.363998399 | P223: 20.44537232 | Q223: 1.756271015 | R223: 3.841570889 | S223: 4.917910298 | T223: 17.02113647 | U223: 1.601227783 | V223: 9.678697385 | X223: 27.45797624 | Y223: 14.22925377 | Z223: 6.449016309 | AA223: 45.82158321 | AB223: 2.743204689 | AC223: 7.5498209 | AD223: 10.03078324 | AE223: 37.92871957 | AF223: 2.38583004 | AG223: 21.00439747
A224: 179 | B224: 101.0182787 | C224: 227.6271324 | D224: 0 | E224: 30 | G224: 100.0182787 | H224: 124 | J224: 0 | K224: 1 | M224: 4.624300832 | N224: 1.678332811 | O224: 89.04498003 | P224: 5.670665018 | Q224: 3.360201952 | R224: 3.439391773 | S224: 3.2636288 | T224: 2.673919842 | U224: 9.061450078 | V224: 3.653641653 | X224: 9.354013418 | Y224: 2.563557129 | Z224: 203.943679 | AA224: 11.76588287 | AB224: 6.440265499 | AC224: 6.622798038 | AD224: 6.217664385 | AE224: 4.858385236 | AF224: 19.58164243 | AG224: 7.116644011
A225: 180 | B225: 26.067183 | C225: 54.86485681 | D225: 0 | E225: 0 | G225: 25.067183 | H225: 53.86485681 | J225: 0 | K225: 0 | M225: 11.23163353 | N225: 4.053872645 | O225: 6.56896897 | P225: 4.212707852 | Q225: 10.88001867 | R225: 5.419703414 | S225: 9.768122929 | T225: 32.75061288 | U225: 9.708753304 | V225: 6.981539267 | X225: 24.58391529 | Y225: 8.039176448 | Z225: 13.83647348 | AA225: 8.405291598 | AB225: 23.77344302 | AC225: 11.18741637 | AD225: 21.21052335 | AE225: 74.18516268 | AF225: 21.07367637 | AG225: 14.78744801
A226: 181 | B226: 26.7272562 | C226: 56.38632553 | D226: 0 | E226: 0 | G226: 25.7272562 | H226: 55.38632553 | J226: 0 | K226: 0 | M226: 3.876010756 | N226: 6.323741178 | O226: 12.07679339 | P226: 4.450710873 | Q226: 8.098510989 | R226: 26.49127974 | S226: 2.360554498 | T226: 28.46740014 | U226: 15.59170567 | V226: 3.313998935 | X226: 7.629204793 | Y226: 13.27122342 | Z226: 26.53200876 | AA226: 8.953888562 | AB226: 17.36206783 | AC226: 59.75739981 | AD226: 4.136078118 | AE226: 64.31235733 | AF226: 34.63388157 | AG226: 6.333767544
A227: 182 | B227: 53.03817671 | C227: 117.0329973 | D227: 0 | E227: 0 | G227: 52.03817671 | H227: 116.0329973 | J227: 0 | K227: 0 | M227: 2.412589271 | N227: 34.28579026 | O227: 5.462484998 | P227: 10.87731218 | Q227: 5.307578092 | R227: 6.916838142 | S227: 7.777692224 | T227: 7.555203936 | U227: 38.25879682 | V227: 24.52089296 | X227: 4.25601827 | Y227: 77.72374654 | Z227: 11.28602792 | AA227: 23.76720458 | AB227: 10.9289675 | AC227: 14.63831192 | AD227: 16.62258058 | AE227: 16.10974507 | AF227: 86.88152666 | AG227: 55.21565828
A228: 183 | B228: 80.6612951 | C228: 180.7042852 | D228: 0 | E228: 30 | G228: 79.6612951 | H228: 124 | J228: 0 | K228: 1 | M228: 41.29858525 | N228: 1.594524006 | O228: 20.0041478 | P228: 17.76403804 | Q228: 17.74169895 | R228: 8.643234808 | S228: 3.733110515 | T228: 0.5512854705 | U228: 1.495361377 | V228: 4.466360306 | X228: 93.888239 | Y228: 2.370377834 | Z228: 44.80456069 | AA228: 39.64110769 | AB228: 39.58961608 | AC228: 18.61765623 | AD228: 7.299819737 | AE228: 0.5512854705 | AF228: 2.141807973 | AG228: 8.989960505
A229: 184 | B229: 38.17569924 | C229: 82.77498675 | D229: 0 | E229: 0 | G229: 37.17569924 | H229: 81.77498675 | J229: 0 | K229: 0 | M229: 13.92997177 | N229: 7.059434098 | O229: 14.10265204 | P229: 3.083641337 | Q229: 47.73341126 | R229: 1.798184374 | S229: 8.635287588 | T229: 16.78240107 | U229: 59.97779845 | V229: 32.89130192 | X229: 30.80358493 | Y229: 14.9669956 | Z229: 31.20161294 | AA229: 5.802793281 | AB229: 108.720513 | AC229: 2.839814982 | AD229: 18.59933789 | AE229: 37.37843448 | AF229: 136.9438254 | AG229: 74.50945092
A230: 185 | B230: 31.43430612 | C230: 67.23607562 | D230: 0 | E230: 0 | G230: 30.43430612 | H230: 66.23607562 | J230: 0 | K230: 0 | M230: 1.039395575 | N230: 3.203839107 | O230: 19.23542687 | P230: 7.955644574 | Q230: 8.735024792 | R230: 13.63436091 | S230: 5.172160761 | T230: 1.709937988 | U230: 4.696862618 | V230: 8.128960086 | X230: 1.0908068 | Y230: 6.079849142 | Z230: 43.03265893 | AA230: 17.03276074 | AB230: 18.82923215 | AC230: 30.1222019 | AD230: 10.61683055 | AE230: 2.636407062 | AF230: 9.521268334 | AG230: 17.432253
A231: 186 | B231: 8.523513851 | C231: 14.42669943 | D231: 0 | E231: 0 | G231: 7.523513851 | H231: 13.42669943 | J231: 0 | K231: 0 | M231: 1.272303133 | N231: 2.719011894 | O231: 2.69448921 | P231: 1.837709614 | Q231: 1.700730168 | R231: 8.854256001 | S231: 7.968338941 | T231: 5.329575447 | U231: 11.24580709 | V231: 6.80007972 | X231: 1.627658721 | Y231: 4.962322416 | Z231: 4.90579763 | AA231: 2.93092066 | AB231: 2.615183038 | AC231: 19.10406008 | AD231: 17.06202126 | AE231: 10.9796714 | AF231: 24.61658535 | AG231: 14.36918375
A232: 187 | B232: 25.9558177 | C232: 54.6081598 | D232: 0 | E232: 0 | G232: 24.9558177 | H232: 53.6081598 | J232: 0 | K232: 0 | M232: 11.00459917 | N232: 5.652758214 | O232: 7.254904608 | P232: 2.043555715 | Q232: 2.269922494 | R232: 7.45165282 | S232: 2.277897397 | T232: 16.13063559 | U232: 3.645739244 | V232: 1.464263303 | X232: 24.06060108 | Y232: 11.72460768 | Z232: 15.41755512 | AA232: 3.405395924 | AB232: 3.927171349 | AC232: 15.87105975 | AD232: 3.9455535 | AE232: 35.87611504 | AF232: 7.098428956 | AG232: 2.070126912
A233: 188 | B233: 47.20227507 | C233: 103.581244 | D233: 0 | E233: 0 | G233: 46.20227507 | H233: 102.581244 | J233: 0 | K233: 0 | M233: 2.153109423 | N233: 4.848866605 | O233: 10.57796478 | P233: 29.62233426 | Q233: 8.940009664 | R233: 7.711788576 | S233: 8.24261836 | T233: 25.18352305 | U233: 2.712450978 | V233: 6.392750129 | X233: 3.65791722 | Y233: 9.871637524 | Z233: 23.07720881 | AA233: 66.97448047 | AB233: 19.30172227 | AC233: 16.47067267 | AD233: 17.69423532 | AE233: 56.74302064 | AF233: 4.947199505 | AG233: 13.43028905
A234: 189 | B234: 29.66110487 | C234: 63.14884673 | D234: 0 | E234: 0 | G234: 28.66110487 | H234: 62.14884673 | J234: 0 | K234: 0 | M234: 9.05013126 | N234: 14.25023632 | O234: 1.863335189 | P234: 4.497402102 | Q234: 3.048675584 | R234: 5.584380616 | S234: 8.053177123 | T234: 7.517302731 | U234: 4.240246507 | V234: 14.93937544 | X234: 19.55555255 | Y234: 31.54179472 | Z234: 2.98998761 | AA234: 9.061511844 | AB234: 5.722197222 | AC234: 11.56699732 | AD234: 17.25757327 | AE234: 16.02238279 | AF234: 8.468768198 | AG234: 33.13026039
... 2016 more rows
